{"text_format":"1","workbook":"xlsx","n_sheets":20,"sheets":["LISTADO","001","002","003","004","005","006","007","008","009","010","011","012","013","014","015","F-2. MATRIZ PROB E IMPACTO.","F-3. ASIGNACION RIESGOS ","Hoja1","Hoja3"],"not_rendered":{"charts":0,"images":0,"macros":1,"external_links":4,"defined_names":66,"comments":0,"pivot_tables":0},"unopened":[],"bounds":{"document_bytes":16777216,"sheet_cells":100000,"rows_first":2000,"rows_last":500,"rows_between":2000,"halvings":0,"cell_chars":16384,"cell_head_chars":4096},"cells_cut":0,"cells_raw":0,"read":"whole","date_system":"1900"}

{"sheet":"LISTADO","index":0,"n_rows":21,"n_cols":7,"rows_kept":21,"cut":false,"hidden":false,"merged":[[0,0,0,2],[19,1,19,2],[20,1,20,2],[3,1,3,2],[1,0,1,2]]}
["LISTADO DE FORMATOS"]
["‘‘MEJORAMIENTO DE LAS VÍAS DE CIRCULACIÓN INTERNA, SEÑALIZACIÓN Y ORNATO EN LA SEDE CENTRAL DE LA UNIVERSIDAD NACIONAL DE EDUCACIÓN ENRIQUE GUZMÁN Y VALLE’’ – SALDO DE OBRA – 1ERA ETAPA"]
["Nº FORMATO",null,"NOMBRE DEL FORMATO",null,null,null,"22"]
["01","IDENTIFICACION ANALISIS Y RESPUESTA A LOS RIESGOS "]
[null,{"$f":"+'F-3. ASIGNACION RIESGOS '!A9","v":"VIAS-UNE-001"},{"$f":"+'F-3. ASIGNACION RIESGOS '!B9","v":"ERRORES, OMISIONES O DEFICIENCIAS EN LOS DISEÑOS"}]
[null,{"$f":"+'F-3. ASIGNACION RIESGOS '!A10","v":"VIAS-UNE-002"},{"$f":"+'F-3. ASIGNACION RIESGOS '!B10","v":"EQUIPOS Y/O MAQUINARIA NO CUMPLE CON ESPECIFICACIONES TECNICAS O NO ES APROPIADA PARA EJECUCION DE PARTIDAS SEGÚN CALIFICACION DE LA SUPERVISION"}]
[null,{"$f":"+'F-3. ASIGNACION RIESGOS '!A11","v":"VIAS-UNE-003"},{"$f":"+'F-3. ASIGNACION RIESGOS '!B11","v":"DEFICIENCIAS ESTRUCTURALES EN LA CONSTRUCCION DE LAS VIAS PEATONALES Y CICLOVIAS "}]
[null,{"$f":"+'F-3. ASIGNACION RIESGOS '!A12","v":"VIAS-UNE-004"},{"$f":"+'F-3. ASIGNACION RIESGOS '!B12","v":"DAÑOS A INFRAESTRUCTURA EXISTENTE DE LA ENTIDAD O PROPIEDAD DE TERCEROS."}]
[null,{"$f":"+'F-3. ASIGNACION RIESGOS '!A13","v":"VIAS-UNE-005"},{"$f":"+'F-3. ASIGNACION RIESGOS '!B13","v":"DEFICIENCIA EN TRABAJOS DE PLAN DE CONTINGENCIA Y ADECUACION A LA NORMA GE.030 CALIDAD DE LA CONSTRUCCION, EN CONCORDANCIA CON LA PROGRAMACION DE OBRA"}]
[null,{"$f":"+'F-3. ASIGNACION RIESGOS '!A14","v":"VIAS-UNE-006"},{"$f":"+'F-3. ASIGNACION RIESGOS '!B14","v":"RIESGO DE EXCESO DE RUIDO, REMANENTES DE ACERO CORRUGADO FY=4200 KG/CM2 GRADO 60 Y CONTAMINACION DE POLVO AL REALIZAR TRABAJOS DE CAMPO"}]
[null,{"$f":"+'F-3. ASIGNACION RIESGOS '!A15","v":"VIAS-UNE-007"},{"$f":"+'F-3. ASIGNACION RIESGOS '!B15","v":"RIESGO DE ATRASOS POR DEMORA EN ATENCION DE CONSULTAS SOBRE OCURRENCIAS DE OBRA"}]
[null,{"$f":"+'F-3. ASIGNACION RIESGOS '!A16","v":"VIAS-UNE-008"},{"$f":"+'F-3. ASIGNACION RIESGOS '!B16","v":"RIESGO DE ACCIDENTES GRAVES Y MUY GRAVES PRODUCTO DE LA EJECUCION DE LA OBRA"}]
[null,{"$f":"+'F-3. ASIGNACION RIESGOS '!A17","v":"VIAS-UNE-009"},{"$f":"+'F-3. ASIGNACION RIESGOS '!B17","v":"DEFICIENTE GESTION OPERATIVA Y ADMINISTRATIVA DE LA OBRA"}]
[null,{"$f":"+'F-3. ASIGNACION RIESGOS '!A18","v":"VIAS-UNE-010"},{"$f":"+'F-3. ASIGNACION RIESGOS '!B18","v":"RIESGO DE CONTAMINACION DE SUELO, AIRE Y AGUA"}]
[null,{"$f":"+'F-3. ASIGNACION RIESGOS '!A19","v":"VIAS-UNE-011"},{"$f":"+'F-3. ASIGNACION RIESGOS '!B19","v":"CONCRETO NO CUMPLE CON RESISTENCIA A LA COMPRESION ESPECIFICADA"}]
[null,{"$f":"+'F-3. ASIGNACION RIESGOS '!A20","v":"VIAS-UNE-012"},{"$f":"+'F-3. ASIGNACION RIESGOS '!B20","v":"DELINCUENCIA Y/O VANDALISMO"}]
[null,{"$f":"+'F-3. ASIGNACION RIESGOS '!A21","v":"VIAS-UNE-013"},{"$f":"+'F-3. ASIGNACION RIESGOS '!B21","v":"USO DE DEPOSITOS DE MATERIAL EXCEDENTES (DME) NO AUTORIZADOS O PROPIEDAD DE TERCEROS "}]
[null,{"$f":"+'F-3. ASIGNACION RIESGOS '!A22","v":"VIAS-UNE-014"},{"$f":"+'F-3. ASIGNACION RIESGOS '!B22","v":"CAMBIOS EN LA NORMATIVA QUE RESULTE DE APLICACIÓN EN LA EJECUCION DE LA OBRA"}]
[null,{"$f":"+'F-3. ASIGNACION RIESGOS '!A23","v":"VIAS-UNE-015"},{"$f":"+'F-3. ASIGNACION RIESGOS '!B23","v":"DEBIDO A LAS OCURRENCIAS DE DESASTRES NATURALES PODRIA OCURRIR DAÑOS IRREPARABLES EN LA OBRA A EJECUTAR, LO QUE CONLLEVARIA A AFECTAR EL COSTO DEL PROYECTO Y PERDIDAS DE MATERIALES DE CONSTRUCCION Y BIENES"}]
["02","MATRIZ DE PROBABILIDAD E IMPACTO"]
["03","ASIGNACIÓN DE RIESGOS"]

{"sheet":"001","index":1,"n_rows":28,"n_cols":14,"rows_kept":28,"cut":false,"hidden":false,"merged":[[0,0,0,8],[1,0,1,8],[2,0,3,0],[2,1,3,2],[2,3,2,4],[2,5,2,8],[3,3,3,4],[3,5,3,8],[9,1,11,1],[9,2,11,3],[9,4,9,5],[9,6,9,8],[4,0,5,0],[4,1,5,2],[4,3,4,4],[4,5,4,8],[5,3,5,4],[5,5,5,8],[10,4,10,5],[10,6,10,8],[11,4,11,5],[11,6,11,8],[6,0,11,0],[6,1,6,8],[12,0,22,0],[12,1,12,8],[13,1,18,1],[13,2,13,4],[13,5,18,5],[13,6,13,8],[20,1,22,1],[20,2,20,8],[21,2,22,3],[21,4,22,4],[21,5,22,6],[21,7,22,8],[7,2,7,3],[7,4,7,8],[8,2,8,3],[8,4,8,8],[19,2,19,3],[19,6,19,7],[23,0,27,0],[23,1,23,8],[24,1,25,1],[24,2,25,3],[24,4,24,5],[25,4,25,5],[26,2,26,3],[26,4,26,8],[27,2,27,3],[27,4,27,8]]}
["Anexo N° 01",null,null,null,null,null,null,null,null,"Regresar"]
["Formato para identificar, analizar y dar respuesta a riesgos"]
[1,"NÚMERO Y FECHA DEL DOCUMENTO",null,"Número",null,"01"]
[null,null,null,"Fecha",null,"ABRIL DEL 2022"]
[2,"DATOS GENERALES DEL PROYECTO",null,"Nombre del Proyecto",null,{"$f":"+LISTADO!A2","v":"‘‘MEJORAMIENTO DE LAS VÍAS DE CIRCULACIÓN INTERNA, SEÑALIZACIÓN Y ORNATO EN LA SEDE CENTRAL DE LA UNIVERSIDAD NACIONAL DE EDUCACIÓN ENRIQUE GUZMÁN Y VALLE’’ – SALDO DE OBRA – 1ERA ETAPA"}]
[null,null,null,"Ubicación Geográfica",null,"DISTRITO CHOSICA, PROVINCIA LURIGANCHO, DEPARTAMENTO LIMA"]
[3,"IDENTIFICACIÓN DE RIESGOS"]
[null,3.1,"CÓDIGO DE RIESGO",null,{"$f":"+'F-3. ASIGNACION RIESGOS '!A9","v":"VIAS-UNE-001"}]
[null,3.2,"DESCRIPCIÓN DEL RIESGO",null,{"$f":"+'F-3. ASIGNACION RIESGOS '!B9","v":"ERRORES, OMISIONES O DEFICIENCIAS EN LOS DISEÑOS"}]
[null,3.3,"CAUSA(S) GENERADORA(S)",null,"Causa N° 1",null,"DISEÑOS EFECTUADOS A PARTIR DE INFORMACION TECNICA  DEFICIENTE"]
[null,null,null,null,"Causa N° 2",null,"PROFESIONALES RESPONSABLES NO CAPACITADOS EN LA ESPECIALIDAD"]
[null,null,null,null,"Causa N° 3",null,"ESTUDIOS BASICOS DEFICIENTES"]
[4,"ANÁLISIS CUALITATIVO DE RIESGOS"]
[null,4.0999999999999996,"PROBABILIDAD DE OCURRENCIA",null,null,4.2,"IMPACTO EN LA EJECUCIÓN DE LA OBRA"]
[null,null,"Muy baja ",{"$f":"+'[3]F-2. MATRIZ PROB E IMPACTO.'!C11","v":0.1},null,null,"Muy bajo",{"$f":"+'[3]F-2. MATRIZ PROB E IMPACTO.'!D12","v":0.05}]
[null,null,"Baja ",{"$f":"+'[3]F-2. MATRIZ PROB E IMPACTO.'!C10","v":0.3},null,null,"Bajo",{"$f":"+'[3]F-2. MATRIZ PROB E IMPACTO.'!E12","v":0.1}]
[null,null,"Moderada ",{"$f":"+'[3]F-2. MATRIZ PROB E IMPACTO.'!C9","v":0.5},"X",null,"Moderado",{"$f":"+'[3]F-2. MATRIZ PROB E IMPACTO.'!F12","v":0.2}]
[null,null,"Alta ",{"$f":"+'[3]F-2. MATRIZ PROB E IMPACTO.'!C8","v":0.7},null,null,"Alto",{"$f":"+'[3]F-2. MATRIZ PROB E IMPACTO.'!G12","v":0.4},"X",null,null,null,null,{"$f":"0.1*0.4","v":4.0000000000000008E-2}]
[null,null,"Muy alta ",{"$f":"+'[3]F-2. MATRIZ PROB E IMPACTO.'!C7","v":0.9},null,null,"Muy alto ",{"$f":"+'[3]F-2. MATRIZ PROB E IMPACTO.'!H12","v":0.8}]
[null,null,{"$f":"IFERROR(INDEX(C15:E19,MATCH(IF(E15>0,E15,IF(E16>0,E16,IF(E17>0,E17,IF(E18>0,E18,IF(E19>0,E19,\"\"))))),E15:E19,0),1),\"\")","v":"Moderada "},null,{"$f":"IFERROR(INDEX(D15:E19,MATCH(IF(E15>0,E15,IF(E16>0,E16,IF(E17>0,E17,IF(E18>0,E18,IF(E19>0,E19,\"\"))))),E15:E19,0),1),\"\")","v":0.5},null,{"$f":"IFERROR(INDEX(G15:I19,MATCH(IF(I15>0,I15,IF(I16>0,I16,IF(I17>0,I17,IF(I18>0,I18,IF(I19>0,I19,\"\"))))),I15:I19,0),1),\"\")","v":"Alto"},null,{"$f":"IFERROR(INDEX(H15:I19,MATCH(IF(I15>0,I15,IF(I16>0,I16,IF(I17>0,I17,IF(I18>0,I18,IF(I19>0,I19,\"\"))))),I15:I19,0),1),\"\")","v":0.4}]
[null,4.3,"PRIORIZACIÓN DEL RIESGO"]
[null,null,"Puntuación del Riesgo =Probabilidad x \nImpacto",null,{"$f":"+IFERROR(ROUND(E20*I20,3),0)","v":0.2},"Prioridad\ndel Riesgo ",null,{"$f":"+IF(E22=0,\"\",IF(AND(E22>=MIN('F-2. MATRIZ PROB E IMPACTO.'!F7:H7,'F-2. MATRIZ PROB E IMPACTO.'!G8:H8,'F-2. MATRIZ PROB E IMPACTO.'!G9:H9,'F-2. MATRIZ PROB E IMPACTO.'!H10),E22<=MAX('F-2. MATRIZ PROB E IMPACTO.'!F7:H7,'F-2. MATRIZ PROB E IMPACTO.'!G8:H8,'F-2. MATRIZ PROB E IMPACTO.'!G9:H9,'F-2. MATRIZ PROB E IMPACTO.'!H10)),\"Alta Prioridad\",IF(AND(E22>=MIN('F-2. MATRIZ PROB E IMPACTO.'!E7:E8,'F-2. MATRIZ PROB E IMPACTO.'!F8:F10,'F-2. MATRIZ PROB E IMPACTO.'!G10,'F-2. MATRIZ PROB E IMPACTO.'!H11),E22<=MAX('F-2. MATRIZ PROB E IMPACTO.'!E7:E8,'F-2. MATRIZ PROB E IMPACTO.'!F8:F10,'F-2. MATRIZ PROB E IMPACTO.'!G10,'F-2. MATRIZ PROB E IMPACTO.'!H11)),\"Prioridad Moderada\",IF(AND(E22>=MIN('F-2. MATRIZ PROB E IMPACTO.'!D7:D11,'F-2. MATRIZ PROB E IMPACTO.'!E9:E11,'F-2. MATRIZ PROB E IMPACTO.'!F11,'F-2. MATRIZ PROB E IMPACTO.'!G11),E22<=MAX('F-2. MATRIZ PROB E IMPACTO.'!D7:D11,'F-2. MATRIZ PROB E IMPACTO.'!E9:E11,'F-2. MATRIZ PROB E IMPACTO.'!F11,'F-2. MATRIZ PROB E IMPACTO.'!G11,)),\"Baja Prioridad\",\"\"))))","v":"Alta Prioridad"},null,null,null,{"$f":"+E25","v":"Mitigar Riesgo"},{"$f":"+G25","v":"X"}]
[null,null,null,null,null,null,null,null,null,null,null,{"$f":"+E26","v":"Aceptar Riesgo"},{"$f":"+G26","v":0}]
[5,"RESPUESTA A LOS RIESGOS",null,null,null,null,null,null,null,null,null,{"$f":"+H25","v":"Evitar Riesgo"},{"$f":"+I25","v":0}]
[null,5.0999999999999996,"ESTRATEGIA",null,"Mitigar Riesgo",null,"X","Evitar Riesgo",null,null,null,{"$f":"+H26","v":"Transferir Riesgo"},{"$f":"+I26","v":0}]
[null,null,null,null,"Aceptar Riesgo",null,null,"Transferir Riesgo"]
[null,5.2,"DISPARADOR DE RIESGO",null,"INFORME DE COMPATIBILIDAD PRESENTADO POR LA SUPERVISION, A INICIO DE LA OBRA, ALERTA SOBRE DEFICIENCIAS EN LOS DISEÑOS",null,null,null,null,null,null,null,{"$f":"IFERROR(INDEX(L22:M26,MATCH(IF(M22>0,M22,IF(M23>0,M23,IF(M24>0,M24,IF(M25>0,M25,IF(M26>0,M26,\"\"))))),M22:M26,0),1),\"\")","v":"Mitigar Riesgo"}]
[null,5.3,"ACCIONES PARA DAR RESPUESTA AL RIESGO",null," * SUPERVISION INFORMA OCORRUNCIA Y ENTIDAD EVALUA  A FIN DE TRASLADAR LAS RESPONSABILIDADES U OBLIGACIONES, ASI COMO TAMBIEN, DE PRESENTARSE VARIACIONES EN LOS COSTOS, IMPLEMENTAR MEDIDAS COMPENSATORIAS EN EL MARCO DE LA LEY DE CONTRATACIONES DEL ESTADO.                                                                         * EL AREA DE ESTUDIOS Y PROYECTOS, A TRAVES DE COORDINADOR DEL PROYECTO Y ESPECIALISTA RECALCULA, REDISEÑA Y/O ABSUELVE CONSULTA DENTRO DE  PLAZO DE LEY."]

{"sheet":"002","index":2,"n_rows":28,"n_cols":13,"rows_kept":28,"cut":false,"hidden":false,"merged":[[0,0,0,8],[1,0,1,8],[2,0,3,0],[2,1,3,2],[2,3,2,4],[2,5,2,8],[3,3,3,4],[3,5,3,8],[9,1,11,1],[9,2,11,3],[9,4,9,5],[9,6,9,8],[4,0,5,0],[4,1,5,2],[4,3,4,4],[4,5,4,8],[5,3,5,4],[5,5,5,8],[10,4,10,5],[10,6,10,8],[11,4,11,5],[11,6,11,8],[6,0,11,0],[6,1,6,8],[12,0,22,0],[12,1,12,8],[13,1,18,1],[13,2,13,4],[13,5,18,5],[13,6,13,8],[20,1,22,1],[20,2,20,8],[21,2,22,3],[21,4,22,4],[21,5,22,6],[21,7,22,8],[7,2,7,3],[7,4,7,8],[8,2,8,3],[8,4,8,8],[19,2,19,3],[19,6,19,7],[23,0,27,0],[23,1,23,8],[24,1,25,1],[24,2,25,3],[24,4,24,5],[25,4,25,5],[26,2,26,3],[26,4,26,8],[27,2,27,3],[27,4,27,8]]}
["Anexo N° 01",null,null,null,null,null,null,null,null,"Regresar"]
["Formato para identificar, analizar y dar respuesta a riesgos"]
[1,"NÚMERO Y FECHA DEL DOCUMENTO",null,"Número",null,"02"]
[null,null,null,"Fecha",null,{"$f":"'001'!F4:I4","v":"ABRIL DEL 2022"}]
[2,"DATOS GENERALES DEL PROYECTO",null,"Nombre del Proyecto",null,{"$f":"'001'!F5:I5","v":"‘‘MEJORAMIENTO DE LAS VÍAS DE CIRCULACIÓN INTERNA, SEÑALIZACIÓN Y ORNATO EN LA SEDE CENTRAL DE LA UNIVERSIDAD NACIONAL DE EDUCACIÓN ENRIQUE GUZMÁN Y VALLE’’ – SALDO DE OBRA – 1ERA ETAPA"}]
[null,null,null,"Ubicación Geográfica",null,{"$f":"'001'!F6:I6","v":"DISTRITO CHOSICA, PROVINCIA LURIGANCHO, DEPARTAMENTO LIMA"}]
[3,"IDENTIFICACIÓN DE RIESGOS"]
[null,3.1,"CÓDIGO DE RIESGO",null,{"$f":"+'F-3. ASIGNACION RIESGOS '!A10","v":"VIAS-UNE-002"}]
[null,3.2,"DESCRIPCIÓN DEL RIESGO",null,{"$f":"+'F-3. ASIGNACION RIESGOS '!B10","v":"EQUIPOS Y/O MAQUINARIA NO CUMPLE CON ESPECIFICACIONES TECNICAS O NO ES APROPIADA PARA EJECUCION DE PARTIDAS SEGÚN CALIFICACION DE LA SUPERVISION"}]
[null,3.3,"CAUSA(S) GENERADORA(S)",null,"Causa N° 1",null,"EJECUTOR NO CUMPLE CON TRASLADO DE MAQUINARIA ESPECIFICADA PARA EL PROYECTO"]
[null,null,null,null,"Causa N° 2",null,"ANTIGÜEDAD U OBSELESCENCIA DE EQUIPOS Y MAQUINARIA"]
[null,null,null,null,"Causa N° 3",null,"EJECUTOR NO REPONE EQUIPOS Y/O MAQUINARIA SIMILAR A LA REQUERIDA POR EL PROYECTO, TRAS AVERIA."]
[4,"ANÁLISIS CUALITATIVO DE RIESGOS"]
[null,4.0999999999999996,"PROBABILIDAD DE OCURRENCIA",null,null,4.2,"IMPACTO EN LA EJECUCIÓN DE LA OBRA"]
[null,null,"Muy baja ",{"$f":"+'[3]F-2. MATRIZ PROB E IMPACTO.'!C11","v":0.1},null,null,"Muy bajo",{"$f":"+'[3]F-2. MATRIZ PROB E IMPACTO.'!D12","v":0.05}]
[null,null,"Baja ",{"$f":"+'[3]F-2. MATRIZ PROB E IMPACTO.'!C10","v":0.3},"X",null,"Bajo",{"$f":"+'[3]F-2. MATRIZ PROB E IMPACTO.'!E12","v":0.1}]
[null,null,"Moderada ",{"$f":"+'[3]F-2. MATRIZ PROB E IMPACTO.'!C9","v":0.5},null,null,"Moderado",{"$f":"+'[3]F-2. MATRIZ PROB E IMPACTO.'!F12","v":0.2}]
[null,null,"Alta ",{"$f":"+'[3]F-2. MATRIZ PROB E IMPACTO.'!C8","v":0.7},null,null,"Alto",{"$f":"+'[3]F-2. MATRIZ PROB E IMPACTO.'!G12","v":0.4},"X"]
[null,null,"Muy alta ",{"$f":"+'[3]F-2. MATRIZ PROB E IMPACTO.'!C7","v":0.9},null,null,"Muy alto ",{"$f":"+'[3]F-2. MATRIZ PROB E IMPACTO.'!H12","v":0.8}]
[null,null,{"$f":"IFERROR(INDEX(C15:E19,MATCH(IF(E15>0,E15,IF(E16>0,E16,IF(E17>0,E17,IF(E18>0,E18,IF(E19>0,E19,\"\"))))),E15:E19,0),1),\"\")","v":"Baja "},null,{"$f":"IFERROR(INDEX(D15:E19,MATCH(IF(E15>0,E15,IF(E16>0,E16,IF(E17>0,E17,IF(E18>0,E18,IF(E19>0,E19,\"\"))))),E15:E19,0),1),\"\")","v":0.3},null,{"$f":"IFERROR(INDEX(G15:I19,MATCH(IF(I15>0,I15,IF(I16>0,I16,IF(I17>0,I17,IF(I18>0,I18,IF(I19>0,I19,\"\"))))),I15:I19,0),1),\"\")","v":"Alto"},null,{"$f":"IFERROR(INDEX(H15:I19,MATCH(IF(I15>0,I15,IF(I16>0,I16,IF(I17>0,I17,IF(I18>0,I18,IF(I19>0,I19,\"\"))))),I15:I19,0),1),\"\")","v":0.4}]
[null,4.3,"PRIORIZACIÓN DEL RIESGO"]
[null,null,"Puntuación del Riesgo =Probabilidad x \nImpacto",null,{"$f":"+IFERROR(ROUND(E20*I20,3),0)","v":0.12},"Prioridad\ndel Riesgo ",null,{"$f":"+IF(E22=0,\"\",IF(AND(E22>=MIN('F-2. MATRIZ PROB E IMPACTO.'!F7:H7,'F-2. MATRIZ PROB E IMPACTO.'!G8:H8,'F-2. MATRIZ PROB E IMPACTO.'!G9:H9,'F-2. MATRIZ PROB E IMPACTO.'!H10),E22<=MAX('F-2. MATRIZ PROB E IMPACTO.'!F7:H7,'F-2. MATRIZ PROB E IMPACTO.'!G8:H8,'F-2. MATRIZ PROB E IMPACTO.'!G9:H9,'F-2. MATRIZ PROB E IMPACTO.'!H10)),\"Alta Prioridad\",IF(AND(E22>=MIN('F-2. MATRIZ PROB E IMPACTO.'!E7:E8,'F-2. MATRIZ PROB E IMPACTO.'!F8:F10,'F-2. MATRIZ PROB E IMPACTO.'!G10,'F-2. MATRIZ PROB E IMPACTO.'!H11),E22<=MAX('F-2. MATRIZ PROB E IMPACTO.'!E7:E8,'F-2. MATRIZ PROB E IMPACTO.'!F8:F10,'F-2. MATRIZ PROB E IMPACTO.'!G10,'F-2. MATRIZ PROB E IMPACTO.'!H11)),\"Prioridad Moderada\",IF(AND(E22>=MIN('F-2. MATRIZ PROB E IMPACTO.'!D7:D11,'F-2. MATRIZ PROB E IMPACTO.'!E9:E11,'F-2. MATRIZ PROB E IMPACTO.'!F11,'F-2. MATRIZ PROB E IMPACTO.'!G11),E22<=MAX('F-2. MATRIZ PROB E IMPACTO.'!D7:D11,'F-2. MATRIZ PROB E IMPACTO.'!E9:E11,'F-2. MATRIZ PROB E IMPACTO.'!F11,'F-2. MATRIZ PROB E IMPACTO.'!G11,)),\"Baja Prioridad\",\"\"))))","v":"Prioridad Moderada"},null,null,null,{"$f":"+E25","v":"Mitigar Riesgo"},{"$f":"+G25","v":0}]
[null,null,null,null,null,null,null,null,null,null,null,{"$f":"+E26","v":"Aceptar Riesgo"},{"$f":"+G26","v":0}]
[5,"RESPUESTA A LOS RIESGOS",null,null,null,null,null,null,null,null,null,{"$f":"+H25","v":"Evitar Riesgo"},{"$f":"+I25","v":0}]
[null,5.0999999999999996,"ESTRATEGIA",null,"Mitigar Riesgo",null,null,"Evitar Riesgo",null,null,null,{"$f":"+H26","v":"Transferir Riesgo"},{"$f":"+I26","v":"X"}]
[null,null,null,null,"Aceptar Riesgo",null,null,"Transferir Riesgo","X"]
[null,5.2,"DISPARADOR DE RIESGO",null,"SUPERVISION CONTROLA Y VERIFICA MAQUINARIA Y/O EQUIPO QUE NO CUMPLA CON ESPECIFICACIONES TECNICAS DEL PROYECTO O INAPROPIADA SE  RECHAZA",null,null,null,null,null,null,null,{"$f":"IFERROR(INDEX(L22:M26,MATCH(IF(M22>0,M22,IF(M23>0,M23,IF(M24>0,M24,IF(M25>0,M25,IF(M26>0,M26,\"\"))))),M22:M26,0),1),\"\")","v":"Transferir Riesgo"}]
[null,5.3,"ACCIONES PARA DAR RESPUESTA AL RIESGO",null,"*SUPERVISION OPORTUNAMENTE EVALUA Y APRUEBA LA MAQUINARIA EN SU PUNTO DE PARTIDA, AUTORIZANDO SU TRASLADO E INGRESO A LA OBRA.                                                                                                               * CONTRATISTA CERTIFICA OPERATIVIDAD DE MAQUINARIA Y EQUIPOS  EN SU PUNTO DE PARTIDA.                                                                                * EJECUTOR ES RESPONSABLE DE CONTAR MINIMAMENTE CON UN (01) EQUIPO O MAQUINARIA ADICIONAL  DE CARACTERISTICAS SIMILARES CARACTERISTICAS O REPONER EN UN PLAZO DETERMINADO POR LA SUPERVISION.                                                                                                       * SUPERVISION ESTA AUTORIZADO PARA RECHAZAR MAQUINARIA Y EQUIPOS  QUE NO CUMPLEN CON ESPECIFICACIONES TECNICAS O CONSIDERA INAPROPIADA PARA EJECUTAR LA OBRA.   "]

{"sheet":"003","index":3,"n_rows":28,"n_cols":13,"rows_kept":28,"cut":false,"hidden":false,"merged":[[0,0,0,8],[1,0,1,8],[2,0,3,0],[2,1,3,2],[2,3,2,4],[2,5,2,8],[3,3,3,4],[3,5,3,8],[9,1,11,1],[9,2,11,3],[9,4,9,5],[9,6,9,8],[4,0,5,0],[4,1,5,2],[4,3,4,4],[4,5,4,8],[5,3,5,4],[5,5,5,8],[10,4,10,5],[10,6,10,8],[11,4,11,5],[11,6,11,8],[6,0,11,0],[6,1,6,8],[12,0,22,0],[12,1,12,8],[13,1,18,1],[13,2,13,4],[13,5,18,5],[13,6,13,8],[20,1,22,1],[20,2,20,8],[21,2,22,3],[21,4,22,4],[21,5,22,6],[21,7,22,8],[7,2,7,3],[7,4,7,8],[8,2,8,3],[8,4,8,8],[19,2,19,3],[19,6,19,7],[23,0,27,0],[23,1,23,8],[24,1,25,1],[24,2,25,3],[24,4,24,5],[25,4,25,5],[26,2,26,3],[26,4,26,8],[27,2,27,3],[27,4,27,8]]}
["Anexo N° 01",null,null,null,null,null,null,null,null,"Regresar"]
["Formato para identificar, analizar y dar respuesta a riesgos"]
[1,"NÚMERO Y FECHA DEL DOCUMENTO",null,"Número",null,"03"]
[null,null,null,"Fecha",null,{"$f":"'001'!F4:I4","v":"ABRIL DEL 2022"}]
[2,"DATOS GENERALES DEL PROYECTO",null,"Nombre del Proyecto",null,{"$f":"'001'!F5:I5","v":"‘‘MEJORAMIENTO DE LAS VÍAS DE CIRCULACIÓN INTERNA, SEÑALIZACIÓN Y ORNATO EN LA SEDE CENTRAL DE LA UNIVERSIDAD NACIONAL DE EDUCACIÓN ENRIQUE GUZMÁN Y VALLE’’ – SALDO DE OBRA – 1ERA ETAPA"}]
[null,null,null,"Ubicación Geográfica",null,{"$f":"'001'!F6:I6","v":"DISTRITO CHOSICA, PROVINCIA LURIGANCHO, DEPARTAMENTO LIMA"}]
[3,"IDENTIFICACIÓN DE RIESGOS"]
[null,3.1,"CÓDIGO DE RIESGO",null,{"$f":"+'F-3. ASIGNACION RIESGOS '!A11","v":"VIAS-UNE-003"}]
[null,3.2,"DESCRIPCIÓN DEL RIESGO",null,{"$f":"+'F-3. ASIGNACION RIESGOS '!B11","v":"DEFICIENCIAS ESTRUCTURALES EN LA CONSTRUCCION DE LAS VIAS PEATONALES Y CICLOVIAS "}]
[null,3.3,"CAUSA(S) GENERADORA(S)",null,"Causa N° 1",null,"EJECUTOR NO CUMPLE CON EL EXPEDIENTE TECNICO"]
[null,null,null,null,"Causa N° 2",null,"EJECUTOR EMPLEA MANO DE OBRA Y/O DIRECCION TECNICA NO CALIFICADA"]
[null,null,null,null,"Causa N° 3",null,"FALTA DE DIRECCION TECNICA "]
[4,"ANÁLISIS CUALITATIVO DE RIESGOS"]
[null,4.0999999999999996,"PROBABILIDAD DE OCURRENCIA",null,null,4.2,"IMPACTO EN LA EJECUCIÓN DE LA OBRA"]
[null,null,"Muy baja ",{"$f":"+'[3]F-2. MATRIZ PROB E IMPACTO.'!C11","v":0.1},null,null,"Muy bajo",{"$f":"+'[3]F-2. MATRIZ PROB E IMPACTO.'!D12","v":0.05}]
[null,null,"Baja ",{"$f":"+'[3]F-2. MATRIZ PROB E IMPACTO.'!C10","v":0.3},"X",null,"Bajo",{"$f":"+'[3]F-2. MATRIZ PROB E IMPACTO.'!E12","v":0.1}]
[null,null,"Moderada ",{"$f":"+'[3]F-2. MATRIZ PROB E IMPACTO.'!C9","v":0.5},null,null,"Moderado",{"$f":"+'[3]F-2. MATRIZ PROB E IMPACTO.'!F12","v":0.2}]
[null,null,"Alta ",{"$f":"+'[3]F-2. MATRIZ PROB E IMPACTO.'!C8","v":0.7},null,null,"Alto",{"$f":"+'[3]F-2. MATRIZ PROB E IMPACTO.'!G12","v":0.4}]
[null,null,"Muy alta ",{"$f":"+'[3]F-2. MATRIZ PROB E IMPACTO.'!C7","v":0.9},null,null,"Muy alto ",{"$f":"+'[3]F-2. MATRIZ PROB E IMPACTO.'!H12","v":0.8},"X"]
[null,null,{"$f":"IFERROR(INDEX(C15:E19,MATCH(IF(E15>0,E15,IF(E16>0,E16,IF(E17>0,E17,IF(E18>0,E18,IF(E19>0,E19,\"\"))))),E15:E19,0),1),\"\")","v":"Baja "},null,{"$f":"IFERROR(INDEX(D15:E19,MATCH(IF(E15>0,E15,IF(E16>0,E16,IF(E17>0,E17,IF(E18>0,E18,IF(E19>0,E19,\"\"))))),E15:E19,0),1),\"\")","v":0.3},null,{"$f":"IFERROR(INDEX(G15:I19,MATCH(IF(I15>0,I15,IF(I16>0,I16,IF(I17>0,I17,IF(I18>0,I18,IF(I19>0,I19,\"\"))))),I15:I19,0),1),\"\")","v":"Muy alto "},null,{"$f":"IFERROR(INDEX(H15:I19,MATCH(IF(I15>0,I15,IF(I16>0,I16,IF(I17>0,I17,IF(I18>0,I18,IF(I19>0,I19,\"\"))))),I15:I19,0),1),\"\")","v":0.8}]
[null,4.3,"PRIORIZACIÓN DEL RIESGO"]
[null,null,"Puntuación del Riesgo =Probabilidad x \nImpacto",null,{"$f":"+IFERROR(ROUND(E20*I20,3),0)","v":0.24},"Prioridad\ndel Riesgo ",null,{"$f":"+IF(E22=0,\"\",IF(AND(E22>=MIN('F-2. MATRIZ PROB E IMPACTO.'!F7:H7,'F-2. MATRIZ PROB E IMPACTO.'!G8:H8,'F-2. MATRIZ PROB E IMPACTO.'!G9:H9,'F-2. MATRIZ PROB E IMPACTO.'!H10),E22<=MAX('F-2. MATRIZ PROB E IMPACTO.'!F7:H7,'F-2. MATRIZ PROB E IMPACTO.'!G8:H8,'F-2. MATRIZ PROB E IMPACTO.'!G9:H9,'F-2. MATRIZ PROB E IMPACTO.'!H10)),\"Alta Prioridad\",IF(AND(E22>=MIN('F-2. MATRIZ PROB E IMPACTO.'!E7:E8,'F-2. MATRIZ PROB E IMPACTO.'!F8:F10,'F-2. MATRIZ PROB E IMPACTO.'!G10,'F-2. MATRIZ PROB E IMPACTO.'!H11),E22<=MAX('F-2. MATRIZ PROB E IMPACTO.'!E7:E8,'F-2. MATRIZ PROB E IMPACTO.'!F8:F10,'F-2. MATRIZ PROB E IMPACTO.'!G10,'F-2. MATRIZ PROB E IMPACTO.'!H11)),\"Prioridad Moderada\",IF(AND(E22>=MIN('F-2. MATRIZ PROB E IMPACTO.'!D7:D11,'F-2. MATRIZ PROB E IMPACTO.'!E9:E11,'F-2. MATRIZ PROB E IMPACTO.'!F11,'F-2. MATRIZ PROB E IMPACTO.'!G11),E22<=MAX('F-2. MATRIZ PROB E IMPACTO.'!D7:D11,'F-2. MATRIZ PROB E IMPACTO.'!E9:E11,'F-2. MATRIZ PROB E IMPACTO.'!F11,'F-2. MATRIZ PROB E IMPACTO.'!G11,)),\"Baja Prioridad\",\"\"))))","v":"Alta Prioridad"},null,null,null,{"$f":"+E25","v":"Mitigar Riesgo"},{"$f":"+G25","v":0}]
[null,null,null,null,null,null,null,null,null,null,null,{"$f":"+E26","v":"Aceptar Riesgo"},{"$f":"+G26","v":0}]
[5,"RESPUESTA A LOS RIESGOS",null,null,null,null,null,null,null,null,null,{"$f":"+H25","v":"Evitar Riesgo"},{"$f":"+I25","v":0}]
[null,5.0999999999999996,"ESTRATEGIA",null,"Mitigar Riesgo",null,null,"Evitar Riesgo",null,null,null,{"$f":"+H26","v":"Transferir Riesgo"},{"$f":"+I26","v":"X"}]
[null,null,null,null,"Aceptar Riesgo",null,null,"Transferir Riesgo","X"]
[null,5.2,"DISPARADOR DE RIESGO",null,"SUPERVISION U OTRO PROFESIONAL DE LA ESPECIALIDAD POR PARTE DE LA ENTIDAD DETECTA DEFICIENCIAS EN ESTRUCTURAS METALICAS ",null,null,null,null,null,null,null,{"$f":"IFERROR(INDEX(L22:M26,MATCH(IF(M22>0,M22,IF(M23>0,M23,IF(M24>0,M24,IF(M25>0,M25,IF(M26>0,M26,\"\"))))),M22:M26,0),1),\"\")","v":"Transferir Riesgo"}]
[null,5.3,"ACCIONES PARA DAR RESPUESTA AL RIESGO",null,"* LA SUPERVISION EXIGE PERMANENCIA DE RESIDENTE DE OBRA Y ESPECIALISTA EN SUELOS Y CONTROL DE CALIDAD DEL EJECUTOR.                                                                                                                               * LA SUPERVISION CALIFICA Y AUTORIZA EMPLEO DE MANO DE OBRA.                                                                                                                                             * LA SUPERVISION SIEMPRE AUTORIZA EJECUCION DE PARTIDAS SUCESORAS MEDIANTE ANOTACION EN CUADERNO DE OBRA.                                                         * EJECUTOR A SU COSTO EFECTUA LAS CORRECIONES A SATISFACCION DE LA SUPERVISION, PROYECTISTA U OTRO PROFESIONAL DE LA ESPECIALIDAD POR PARTE DE LA ENTIDAD."]

{"sheet":"004","index":4,"n_rows":29,"n_cols":13,"rows_kept":29,"cut":false,"hidden":false,"merged":[[0,0,0,8],[1,0,1,8],[2,0,3,0],[2,1,3,2],[2,3,2,4],[2,5,2,8],[3,3,3,4],[3,5,3,8],[9,1,12,1],[9,2,12,3],[9,4,9,5],[9,6,9,8],[4,0,5,0],[4,1,5,2],[4,3,4,4],[4,5,4,8],[5,3,5,4],[5,5,5,8],[10,4,10,5],[10,6,10,8],[12,4,12,5],[12,6,12,8],[6,0,12,0],[6,1,6,8],[13,0,23,0],[13,1,13,8],[14,1,19,1],[14,2,14,4],[14,5,19,5],[14,6,14,8],[21,1,23,1],[21,2,21,8],[22,2,23,3],[22,4,23,4],[22,5,23,6],[22,7,23,8],[7,2,7,3],[7,4,7,8],[8,2,8,3],[8,4,8,8],[20,2,20,3],[20,6,20,7],[11,4,11,5],[11,6,11,8],[24,0,28,0],[24,1,24,8],[25,1,26,1],[25,2,26,3],[25,4,25,5],[26,4,26,5],[27,2,27,3],[27,4,27,8],[28,2,28,3],[28,4,28,8]]}
["Anexo N° 01",null,null,null,null,null,null,null,null,"Regresar"]
["Formato para identificar, analizar y dar respuesta a riesgos"]
[1,"NÚMERO Y FECHA DEL DOCUMENTO",null,"Número",null,"04"]
[null,null,null,"Fecha",null,{"$f":"'001'!F4:I4","v":"ABRIL DEL 2022"}]
[2,"DATOS GENERALES DEL PROYECTO",null,"Nombre del Proyecto",null,{"$f":"'001'!F5:I5","v":"‘‘MEJORAMIENTO DE LAS VÍAS DE CIRCULACIÓN INTERNA, SEÑALIZACIÓN Y ORNATO EN LA SEDE CENTRAL DE LA UNIVERSIDAD NACIONAL DE EDUCACIÓN ENRIQUE GUZMÁN Y VALLE’’ – SALDO DE OBRA – 1ERA ETAPA"}]
[null,null,null,"Ubicación Geográfica",null,{"$f":"'001'!F6:I6","v":"DISTRITO CHOSICA, PROVINCIA LURIGANCHO, DEPARTAMENTO LIMA"}]
[3,"IDENTIFICACIÓN DE RIESGOS"]
[null,3.1,"CÓDIGO DE RIESGO",null,{"$f":"+'F-3. ASIGNACION RIESGOS '!A12","v":"VIAS-UNE-004"}]
[null,3.2,"DESCRIPCIÓN DEL RIESGO",null,{"$f":"+'F-3. ASIGNACION RIESGOS '!B12","v":"DAÑOS A INFRAESTRUCTURA EXISTENTE DE LA ENTIDAD O PROPIEDAD DE TERCEROS."}]
[null,3.3,"CAUSA(S) GENERADORA(S)",null,"Causa N° 1",null,"NO SE IMPLEMENTAN MEDIDAS DE PROTECCION O SEÑALIZACION"]
[null,null,null,null,"Causa N° 2",null,"MALA OPERACIÓN DE EQUIPOS Y/O MAQUINARIA DE DEMOLICION, CARGUIO  Y/O ELIMINACION, "]
[null,null,null,null,"Causa N° 3",null,"TRASLADO DE MATERIALES, EXCEDENTES Y/O MAQUINARIA  EN MEDIOS INAPROPIADOS."]
[null,null,null,null,"Causa N° 4",null,"TRASLADO INAPROPIADO DE MATERIALES, EXCEDENTES Y/O MAQUINARIA."]
[4,"ANÁLISIS CUALITATIVO DE RIESGOS"]
[null,4.0999999999999996,"PROBABILIDAD DE OCURRENCIA",null,null,4.2,"IMPACTO EN LA EJECUCIÓN DE LA OBRA"]
[null,null,"Muy baja ",{"$f":"+'[3]F-2. MATRIZ PROB E IMPACTO.'!C11","v":0.1},null,null,"Muy bajo",{"$f":"+'[3]F-2. MATRIZ PROB E IMPACTO.'!D12","v":0.05}]
[null,null,"Baja ",{"$f":"+'[3]F-2. MATRIZ PROB E IMPACTO.'!C10","v":0.3},"X",null,"Bajo",{"$f":"+'[3]F-2. MATRIZ PROB E IMPACTO.'!E12","v":0.1}]
[null,null,"Moderada ",{"$f":"+'[3]F-2. MATRIZ PROB E IMPACTO.'!C9","v":0.5},null,null,"Moderado",{"$f":"+'[3]F-2. MATRIZ PROB E IMPACTO.'!F12","v":0.2}]
[null,null,"Alta ",{"$f":"+'[3]F-2. MATRIZ PROB E IMPACTO.'!C8","v":0.7},null,null,"Alto",{"$f":"+'[3]F-2. MATRIZ PROB E IMPACTO.'!G12","v":0.4},"X"]
[null,null,"Muy alta ",{"$f":"+'[3]F-2. MATRIZ PROB E IMPACTO.'!C7","v":0.9},null,null,"Muy alto ",{"$f":"+'[3]F-2. MATRIZ PROB E IMPACTO.'!H12","v":0.8}]
[null,null,{"$f":"IFERROR(INDEX(C16:E20,MATCH(IF(E16>0,E16,IF(E17>0,E17,IF(E18>0,E18,IF(E19>0,E19,IF(E20>0,E20,\"\"))))),E16:E20,0),1),\"\")","v":"Baja "},null,{"$f":"IFERROR(INDEX(D16:E20,MATCH(IF(E16>0,E16,IF(E17>0,E17,IF(E18>0,E18,IF(E19>0,E19,IF(E20>0,E20,\"\"))))),E16:E20,0),1),\"\")","v":0.3},null,{"$f":"IFERROR(INDEX(G16:I20,MATCH(IF(I16>0,I16,IF(I17>0,I17,IF(I18>0,I18,IF(I19>0,I19,IF(I20>0,I20,\"\"))))),I16:I20,0),1),\"\")","v":"Alto"},null,{"$f":"IFERROR(INDEX(H16:I20,MATCH(IF(I16>0,I16,IF(I17>0,I17,IF(I18>0,I18,IF(I19>0,I19,IF(I20>0,I20,\"\"))))),I16:I20,0),1),\"\")","v":0.4}]
[null,4.3,"PRIORIZACIÓN DEL RIESGO"]
[null,null,"Puntuación del Riesgo =Probabilidad x \nImpacto",null,{"$f":"+IFERROR(ROUND(E21*I21,3),0)","v":0.12},"Prioridad\ndel Riesgo ",null,{"$f":"+IF(E23=0,\"\",IF(AND(E23>=MIN('F-2. MATRIZ PROB E IMPACTO.'!F7:H7,'F-2. MATRIZ PROB E IMPACTO.'!G8:H8,'F-2. MATRIZ PROB E IMPACTO.'!G9:H9,'F-2. MATRIZ PROB E IMPACTO.'!H10),E23<=MAX('F-2. MATRIZ PROB E IMPACTO.'!F7:H7,'F-2. MATRIZ PROB E IMPACTO.'!G8:H8,'F-2. MATRIZ PROB E IMPACTO.'!G9:H9,'F-2. MATRIZ PROB E IMPACTO.'!H10)),\"Alta Prioridad\",IF(AND(E23>=MIN('F-2. MATRIZ PROB E IMPACTO.'!E7:E8,'F-2. MATRIZ PROB E IMPACTO.'!F8:F10,'F-2. MATRIZ PROB E IMPACTO.'!G10,'F-2. MATRIZ PROB E IMPACTO.'!H11),E23<=MAX('F-2. MATRIZ PROB E IMPACTO.'!E7:E8,'F-2. MATRIZ PROB E IMPACTO.'!F8:F10,'F-2. MATRIZ PROB E IMPACTO.'!G10,'F-2. MATRIZ PROB E IMPACTO.'!H11)),\"Prioridad Moderada\",IF(AND(E23>=MIN('F-2. MATRIZ PROB E IMPACTO.'!D7:D11,'F-2. MATRIZ PROB E IMPACTO.'!E9:E11,'F-2. MATRIZ PROB E IMPACTO.'!F11,'F-2. MATRIZ PROB E IMPACTO.'!G11),E23<=MAX('F-2. MATRIZ PROB E IMPACTO.'!D7:D11,'F-2. MATRIZ PROB E IMPACTO.'!E9:E11,'F-2. MATRIZ PROB E IMPACTO.'!F11,'F-2. MATRIZ PROB E IMPACTO.'!G11,)),\"Baja Prioridad\",\"\"))))","v":"Prioridad Moderada"},null,null,null,{"$f":"+E26","v":"Mitigar Riesgo"},{"$f":"+G26","v":0}]
[null,null,null,null,null,null,null,null,null,null,null,{"$f":"+E27","v":"Aceptar Riesgo"},{"$f":"+G27","v":0}]
[5,"RESPUESTA A LOS RIESGOS",null,null,null,null,null,null,null,null,null,{"$f":"+H26","v":"Evitar Riesgo"},{"$f":"+I26","v":0}]
[null,5.0999999999999996,"ESTRATEGIA",null,"Mitigar Riesgo",null,null,"Evitar Riesgo",null,null,null,{"$f":"+H27","v":"Transferir Riesgo"},{"$f":"+I27","v":"x"}]
[null,null,null,null,"Aceptar Riesgo",null,null,"Transferir Riesgo","x"]
[null,5.2,"DISPARADOR DE RIESGO",null,"DENUNCIA POLICIAL - SUPERVISION CONSTATA DAÑOS DEL EJECUTOR - DENUNCIA DE LA COMUNIDAD",null,null,null,null,null,null,null,{"$f":"IFERROR(INDEX(L23:M27,MATCH(IF(M23>0,M23,IF(M24>0,M24,IF(M25>0,M25,IF(M26>0,M26,IF(M27>0,M27,\"\"))))),M23:M27,0),1),\"\")","v":"Transferir Riesgo"}]
[null,5.3,"ACCIONES PARA DAR RESPUESTA AL RIESGO",null,"*EJECUTOR DEBERA DE CUMPLIR CON MEDIDAS DE PROTECCION Y SEGURIDAD PARA TRASLADO DE PERSONAL, MATERIALES, MAQUINARIA Y/O EQUIPOS, ASI MISMO UNA BUENA SEÑALIZACION VIAL EN CASO SE INTERRUMPA LOS ACCESOS VEHICULARES.                                                                                                           *EL EJECUTOR A SU COSTO ESTA OBLIGADO A REPARAR, REPONER, RECONSTRUIR, DEJANDO EN SIMILAR O MEJOR CONDICION LO DAÑADO.                                                                                                                         * EL EJECUTOR ES RESPONSABLE DE ADQUIRIR Y MANTENER VIGENTE LOS SEGUROS CONTRA  RIESGO DE INGENIERIA, DAÑOS A TERCEROS, ETC.                                                                                                                                      * EJECUTOR ESTA OBLIGADO A TENER UN INGENIERO ESPECIALISTA EN SEGURIDAD Y SALUD OCUPACIONAL EN TODAS LAS ACTIVIDADES QUE CONSTITUYAN RIESGO A PROPIDAD DE TERCEROS Y DE LA ENTIDAD                                                                                                                * SUPERVISION EVALUA Y AUTORIZA  PARTICIPACION DE OPERADORES CALIFICADAS EN LA OBRA.                           "]

{"sheet":"005","index":5,"n_rows":29,"n_cols":13,"rows_kept":29,"cut":false,"hidden":false,"merged":[[0,0,0,8],[1,0,1,8],[2,0,3,0],[2,1,3,2],[2,3,2,4],[2,5,2,8],[3,3,3,4],[3,5,3,8],[9,1,12,1],[9,2,12,3],[9,4,9,5],[9,6,9,8],[4,0,5,0],[4,1,5,2],[4,3,4,4],[4,5,4,8],[5,3,5,4],[5,5,5,8],[10,4,10,5],[10,6,10,8],[12,4,12,5],[12,6,12,8],[6,0,12,0],[6,1,6,8],[13,0,23,0],[13,1,13,8],[14,1,19,1],[14,2,14,4],[14,5,19,5],[14,6,14,8],[21,1,23,1],[21,2,21,8],[22,2,23,3],[22,4,23,4],[22,5,23,6],[22,7,23,8],[7,2,7,3],[7,4,7,8],[8,2,8,3],[8,4,8,8],[20,2,20,3],[20,6,20,7],[11,4,11,5],[11,6,11,8],[24,0,28,0],[24,1,24,8],[25,1,26,1],[25,2,26,3],[25,4,25,5],[26,4,26,5],[27,2,27,3],[27,4,27,8],[28,2,28,3],[28,4,28,8]]}
["Anexo N° 01",null,null,null,null,null,null,null,null,"Regresar"]
["Formato para identificar, analizar y dar respuesta a riesgos"]
[1,"NÚMERO Y FECHA DEL DOCUMENTO",null,"Número",null,"05"]
[null,null,null,"Fecha",null,{"$f":"'001'!F4:I4","v":"ABRIL DEL 2022"}]
[2,"DATOS GENERALES DEL PROYECTO",null,"Nombre del Proyecto",null,{"$f":"'001'!F5:I5","v":"‘‘MEJORAMIENTO DE LAS VÍAS DE CIRCULACIÓN INTERNA, SEÑALIZACIÓN Y ORNATO EN LA SEDE CENTRAL DE LA UNIVERSIDAD NACIONAL DE EDUCACIÓN ENRIQUE GUZMÁN Y VALLE’’ – SALDO DE OBRA – 1ERA ETAPA"}]
[null,null,null,"Ubicación Geográfica",null,{"$f":"'001'!F6:I6","v":"DISTRITO CHOSICA, PROVINCIA LURIGANCHO, DEPARTAMENTO LIMA"}]
[3,"IDENTIFICACIÓN DE RIESGOS"]
[null,3.1,"CÓDIGO DE RIESGO",null,{"$f":"+'F-3. ASIGNACION RIESGOS '!A13","v":"VIAS-UNE-005"}]
[null,3.2,"DESCRIPCIÓN DEL RIESGO",null,{"$f":"+'F-3. ASIGNACION RIESGOS '!B13","v":"DEFICIENCIA EN TRABAJOS DE PLAN DE CONTINGENCIA Y ADECUACION A LA NORMA GE.030 CALIDAD DE LA CONSTRUCCION, EN CONCORDANCIA CON LA PROGRAMACION DE OBRA"}]
[null,3.3,"CAUSA(S) GENERADORA(S)",null,"Causa N° 1",null,"MAL PROCEDIMIENTO CONSTRUCTIVO DE PLAN DE CONTINGENCIA Y TRABAJOS DE ADECUACION, NO SE CUMPLE CON EL EXPEDIENTE TECNICO"]
[null,null,null,null,"Causa N° 2",null,"USO DE MATERIALES DE MALA CALIDAD"]
[null,null,null,null,"Causa N° 3",null,"USO DE MANO DE OBRA NO CALIFICADA"]
[null,null,null,null,"Causa N° 4",null,"DEFICIENTE O NO HAY PRESENCIA DE DIRECCION TECNICA"]
[4,"ANÁLISIS CUALITATIVO DE RIESGOS"]
[null,4.0999999999999996,"PROBABILIDAD DE OCURRENCIA",null,null,4.2,"IMPACTO EN LA EJECUCIÓN DE LA OBRA"]
[null,null,"Muy baja ",{"$f":"+'[3]F-2. MATRIZ PROB E IMPACTO.'!C11","v":0.1},null,null,"Muy bajo",{"$f":"+'[3]F-2. MATRIZ PROB E IMPACTO.'!D12","v":0.05}]
[null,null,"Baja ",{"$f":"+'[3]F-2. MATRIZ PROB E IMPACTO.'!C10","v":0.3},null,null,"Bajo",{"$f":"+'[3]F-2. MATRIZ PROB E IMPACTO.'!E12","v":0.1}]
[null,null,"Moderada ",{"$f":"+'[3]F-2. MATRIZ PROB E IMPACTO.'!C9","v":0.5},"X",null,"Moderado",{"$f":"+'[3]F-2. MATRIZ PROB E IMPACTO.'!F12","v":0.2}]
[null,null,"Alta ",{"$f":"+'[3]F-2. MATRIZ PROB E IMPACTO.'!C8","v":0.7},null,null,"Alto",{"$f":"+'[3]F-2. MATRIZ PROB E IMPACTO.'!G12","v":0.4},"X"]
[null,null,"Muy alta ",{"$f":"+'[3]F-2. MATRIZ PROB E IMPACTO.'!C7","v":0.9},null,null,"Muy alto ",{"$f":"+'[3]F-2. MATRIZ PROB E IMPACTO.'!H12","v":0.8}]
[null,null,{"$f":"IFERROR(INDEX(C16:E20,MATCH(IF(E16>0,E16,IF(E17>0,E17,IF(E18>0,E18,IF(E19>0,E19,IF(E20>0,E20,\"\"))))),E16:E20,0),1),\"\")","v":"Moderada "},null,{"$f":"IFERROR(INDEX(D16:E20,MATCH(IF(E16>0,E16,IF(E17>0,E17,IF(E18>0,E18,IF(E19>0,E19,IF(E20>0,E20,\"\"))))),E16:E20,0),1),\"\")","v":0.5},null,{"$f":"IFERROR(INDEX(G16:I20,MATCH(IF(I16>0,I16,IF(I17>0,I17,IF(I18>0,I18,IF(I19>0,I19,IF(I20>0,I20,\"\"))))),I16:I20,0),1),\"\")","v":"Alto"},null,{"$f":"IFERROR(INDEX(H16:I20,MATCH(IF(I16>0,I16,IF(I17>0,I17,IF(I18>0,I18,IF(I19>0,I19,IF(I20>0,I20,\"\"))))),I16:I20,0),1),\"\")","v":0.4}]
[null,4.3,"PRIORIZACIÓN DEL RIESGO"]
[null,null,"Puntuación del Riesgo =Probabilidad x \nImpacto",null,{"$f":"+IFERROR(ROUND(E21*I21,3),0)","v":0.2},"Prioridad\ndel Riesgo ",null,{"$f":"+IF(E23=0,\"\",IF(AND(E23>=MIN('F-2. MATRIZ PROB E IMPACTO.'!F7:H7,'F-2. MATRIZ PROB E IMPACTO.'!G8:H8,'F-2. MATRIZ PROB E IMPACTO.'!G9:H9,'F-2. MATRIZ PROB E IMPACTO.'!H10),E23<=MAX('F-2. MATRIZ PROB E IMPACTO.'!F7:H7,'F-2. MATRIZ PROB E IMPACTO.'!G8:H8,'F-2. MATRIZ PROB E IMPACTO.'!G9:H9,'F-2. MATRIZ PROB E IMPACTO.'!H10)),\"Alta Prioridad\",IF(AND(E23>=MIN('F-2. MATRIZ PROB E IMPACTO.'!E7:E8,'F-2. MATRIZ PROB E IMPACTO.'!F8:F10,'F-2. MATRIZ PROB E IMPACTO.'!G10,'F-2. MATRIZ PROB E IMPACTO.'!H11),E23<=MAX('F-2. MATRIZ PROB E IMPACTO.'!E7:E8,'F-2. MATRIZ PROB E IMPACTO.'!F8:F10,'F-2. MATRIZ PROB E IMPACTO.'!G10,'F-2. MATRIZ PROB E IMPACTO.'!H11)),\"Prioridad Moderada\",IF(AND(E23>=MIN('F-2. MATRIZ PROB E IMPACTO.'!D7:D11,'F-2. MATRIZ PROB E IMPACTO.'!E9:E11,'F-2. MATRIZ PROB E IMPACTO.'!F11,'F-2. MATRIZ PROB E IMPACTO.'!G11),E23<=MAX('F-2. MATRIZ PROB E IMPACTO.'!D7:D11,'F-2. MATRIZ PROB E IMPACTO.'!E9:E11,'F-2. MATRIZ PROB E IMPACTO.'!F11,'F-2. MATRIZ PROB E IMPACTO.'!G11,)),\"Baja Prioridad\",\"\"))))","v":"Alta Prioridad"},null,null,null,{"$f":"+E26","v":"Mitigar Riesgo"},{"$f":"+G26","v":0}]
[null,null,null,null,null,null,null,null,null,null,null,{"$f":"+E27","v":"Aceptar Riesgo"},{"$f":"+G27","v":0}]
[5,"RESPUESTA A LOS RIESGOS",null,null,null,null,null,null,null,null,null,{"$f":"+H26","v":"Evitar Riesgo"},{"$f":"+I26","v":0}]
[null,5.0999999999999996,"ESTRATEGIA",null,"Mitigar Riesgo",null,null,"Evitar Riesgo",null,null,null,{"$f":"+H27","v":"Transferir Riesgo"},{"$f":"+I27","v":"X"}]
[null,null,null,null,"Aceptar Riesgo",null,null,"Transferir Riesgo","X"]
[null,5.2,"DISPARADOR DE RIESGO",null," SUPERVISION U OTRO PROFESIONAL DE LA ESPECIALIDAD POR PARTE DE LA ENTIDAD DETECTA DEFICIENCIAS",null,null,null,null,null,null,null,{"$f":"IFERROR(INDEX(L23:M27,MATCH(IF(M23>0,M23,IF(M24>0,M24,IF(M25>0,M25,IF(M26>0,M26,IF(M27>0,M27,\"\"))))),M23:M27,0),1),\"\")","v":"Transferir Riesgo"}]
[null,5.3,"ACCIONES PARA DAR RESPUESTA AL RIESGO",null,"*SUPERVISION SOLICITA OPORTUNAMENTE CERTIFICADO DE CALIDAD  DE MATERIALES.                                                                               *SUPERVISION EVALUA Y AUTORIZA OPORTUNAMENTE USO DE EQUIPOS PARA LOS TRABAJOS.                                                                     *RESIDENTE DE OBRA DIRIGE DE MANERA PERMANENTE PROCESO CONSTRUCTIVO                                                                                                         * SUPERVISION NO LIBERA TRABAJOS DEFICIENTES, HASTA QUE EL EJECUTOR A SU COSTO EFECTUA LAS CORRECCIONES, A SATISFACCION DE LA SUPERVISION                                                                                              * LA SUPERVISION EXIGE PERMANENCIA DE RESIDENTE DE OBRA Y ESPECIALISTAS DEL EJECUTOR.                                                                                                                               * LA SUPERVISION CALIFICA Y AUTORIZA EMPLEO DE MANO DE OBRA.                                                                                                                                             * LA SUPERVISION SIEMPRE AUTORIZA EJECUCION DE PARTIDAS SUCESORAS MEDIANTE ANOTACION EN CUADERNO DE OBRA.                "]

{"sheet":"006","index":6,"n_rows":28,"n_cols":13,"rows_kept":28,"cut":false,"hidden":false,"merged":[[0,0,0,8],[1,0,1,8],[2,0,3,0],[2,1,3,2],[2,3,2,4],[2,5,2,8],[3,3,3,4],[3,5,3,8],[9,1,11,1],[9,2,11,3],[9,4,9,5],[9,6,9,8],[4,0,5,0],[4,1,5,2],[4,3,4,4],[4,5,4,8],[5,3,5,4],[5,5,5,8],[10,4,10,5],[10,6,10,8],[11,4,11,5],[11,6,11,8],[6,0,11,0],[6,1,6,8],[12,0,22,0],[12,1,12,8],[13,1,18,1],[13,2,13,4],[13,5,18,5],[13,6,13,8],[20,1,22,1],[20,2,20,8],[21,2,22,3],[21,4,22,4],[21,5,22,6],[21,7,22,8],[7,2,7,3],[7,4,7,8],[8,2,8,3],[8,4,8,8],[19,2,19,3],[19,6,19,7],[23,0,27,0],[23,1,23,8],[24,1,25,1],[24,2,25,3],[24,4,24,5],[25,4,25,5],[26,2,26,3],[26,4,26,8],[27,2,27,3],[27,4,27,8]]}
["Anexo N° 01",null,null,null,null,null,null,null,null,"Regresar"]
["Formato para identificar, analizar y dar respuesta a riesgos"]
[1,"NÚMERO Y FECHA DEL DOCUMENTO",null,"Número",null,"06"]
[null,null,null,"Fecha",null,{"$f":"'001'!F4:I4","v":"ABRIL DEL 2022"}]
[2,"DATOS GENERALES DEL PROYECTO",null,"Nombre del Proyecto",null,{"$f":"'001'!F5:I5","v":"‘‘MEJORAMIENTO DE LAS VÍAS DE CIRCULACIÓN INTERNA, SEÑALIZACIÓN Y ORNATO EN LA SEDE CENTRAL DE LA UNIVERSIDAD NACIONAL DE EDUCACIÓN ENRIQUE GUZMÁN Y VALLE’’ – SALDO DE OBRA – 1ERA ETAPA"}]
[null,null,null,"Ubicación Geográfica",null,{"$f":"'001'!F6:I6","v":"DISTRITO CHOSICA, PROVINCIA LURIGANCHO, DEPARTAMENTO LIMA"}]
[3,"IDENTIFICACIÓN DE RIESGOS"]
[null,3.1,"CÓDIGO DE RIESGO",null,{"$f":"+'F-3. ASIGNACION RIESGOS '!A14","v":"VIAS-UNE-006"}]
[null,3.2,"DESCRIPCIÓN DEL RIESGO",null,{"$f":"+'F-3. ASIGNACION RIESGOS '!B14","v":"RIESGO DE EXCESO DE RUIDO, REMANENTES DE ACERO CORRUGADO FY=4200 KG/CM2 GRADO 60 Y CONTAMINACION DE POLVO AL REALIZAR TRABAJOS DE CAMPO"}]
[null,3.3,"CAUSA(S) GENERADORA(S)",null,"Causa N° 1",null,"MAL USO O MAL ESTADO DE MAQUINARIA Y EQUIPOS."]
[null,null,null,null,"Causa N° 2",null,"EJECUCION PARALELA DE ACTIVIDADES EN UN MISMO LUGAR Y FUERA DE HORARIOS DE TRABAJO"]
[null,null,null,null,"Causa N° 3",null,"SE INCUMPLEN NORMATIVA Y MEDIDAS DE MITIGACION DE  IMPACTO AMBIENTAL"]
[4,"ANÁLISIS CUALITATIVO DE RIESGOS"]
[null,4.0999999999999996,"PROBABILIDAD DE OCURRENCIA",null,null,4.2,"IMPACTO EN LA EJECUCIÓN DE LA OBRA"]
[null,null,"Muy baja ",{"$f":"+'[3]F-2. MATRIZ PROB E IMPACTO.'!C11","v":0.1},null,null,"Muy bajo",{"$f":"+'[3]F-2. MATRIZ PROB E IMPACTO.'!D12","v":0.05}]
[null,null,"Baja ",{"$f":"+'[3]F-2. MATRIZ PROB E IMPACTO.'!C10","v":0.3},null,null,"Bajo",{"$f":"+'[3]F-2. MATRIZ PROB E IMPACTO.'!E12","v":0.1}]
[null,null,"Moderada ",{"$f":"+'[3]F-2. MATRIZ PROB E IMPACTO.'!C9","v":0.5},"X",null,"Moderado",{"$f":"+'[3]F-2. MATRIZ PROB E IMPACTO.'!F12","v":0.2},"X"]
[null,null,"Alta ",{"$f":"+'[3]F-2. MATRIZ PROB E IMPACTO.'!C8","v":0.7},null,null,"Alto",{"$f":"+'[3]F-2. MATRIZ PROB E IMPACTO.'!G12","v":0.4}]
[null,null,"Muy alta ",{"$f":"+'[3]F-2. MATRIZ PROB E IMPACTO.'!C7","v":0.9},null,null,"Muy alto ",{"$f":"+'[3]F-2. MATRIZ PROB E IMPACTO.'!H12","v":0.8}]
[null,null,{"$f":"IFERROR(INDEX(C15:E19,MATCH(IF(E15>0,E15,IF(E16>0,E16,IF(E17>0,E17,IF(E18>0,E18,IF(E19>0,E19,\"\"))))),E15:E19,0),1),\"\")","v":"Moderada "},null,{"$f":"IFERROR(INDEX(D15:E19,MATCH(IF(E15>0,E15,IF(E16>0,E16,IF(E17>0,E17,IF(E18>0,E18,IF(E19>0,E19,\"\"))))),E15:E19,0),1),\"\")","v":0.5},null,{"$f":"IFERROR(INDEX(G15:I19,MATCH(IF(I15>0,I15,IF(I16>0,I16,IF(I17>0,I17,IF(I18>0,I18,IF(I19>0,I19,\"\"))))),I15:I19,0),1),\"\")","v":"Moderado"},null,{"$f":"IFERROR(INDEX(H15:I19,MATCH(IF(I15>0,I15,IF(I16>0,I16,IF(I17>0,I17,IF(I18>0,I18,IF(I19>0,I19,\"\"))))),I15:I19,0),1),\"\")","v":0.2}]
[null,4.3,"PRIORIZACIÓN DEL RIESGO"]
[null,null,"Puntuación del Riesgo =Probabilidad x \nImpacto",null,{"$f":"+IFERROR(ROUND(E20*I20,3),0)","v":0.1},"Prioridad\ndel Riesgo ",null,{"$f":"+IF(E22=0,\"\",IF(AND(E22>=MIN('F-2. MATRIZ PROB E IMPACTO.'!F7:H7,'F-2. MATRIZ PROB E IMPACTO.'!G8:H8,'F-2. MATRIZ PROB E IMPACTO.'!G9:H9,'F-2. MATRIZ PROB E IMPACTO.'!H10),E22<=MAX('F-2. MATRIZ PROB E IMPACTO.'!F7:H7,'F-2. MATRIZ PROB E IMPACTO.'!G8:H8,'F-2. MATRIZ PROB E IMPACTO.'!G9:H9,'F-2. MATRIZ PROB E IMPACTO.'!H10)),\"Alta Prioridad\",IF(AND(E22>=MIN('F-2. MATRIZ PROB E IMPACTO.'!E7:E8,'F-2. MATRIZ PROB E IMPACTO.'!F8:F10,'F-2. MATRIZ PROB E IMPACTO.'!G10,'F-2. MATRIZ PROB E IMPACTO.'!H11),E22<=MAX('F-2. MATRIZ PROB E IMPACTO.'!E7:E8,'F-2. MATRIZ PROB E IMPACTO.'!F8:F10,'F-2. MATRIZ PROB E IMPACTO.'!G10,'F-2. MATRIZ PROB E IMPACTO.'!H11)),\"Prioridad Moderada\",IF(AND(E22>=MIN('F-2. MATRIZ PROB E IMPACTO.'!D7:D11,'F-2. MATRIZ PROB E IMPACTO.'!E9:E11,'F-2. MATRIZ PROB E IMPACTO.'!F11,'F-2. MATRIZ PROB E IMPACTO.'!G11),E22<=MAX('F-2. MATRIZ PROB E IMPACTO.'!D7:D11,'F-2. MATRIZ PROB E IMPACTO.'!E9:E11,'F-2. MATRIZ PROB E IMPACTO.'!F11,'F-2. MATRIZ PROB E IMPACTO.'!G11,)),\"Baja Prioridad\",\"\"))))","v":"Prioridad Moderada"},null,null,null,{"$f":"+E25","v":"Mitigar Riesgo"},{"$f":"+G25","v":0}]
[null,null,null,null,null,null,null,null,null,null,null,{"$f":"+E26","v":"Aceptar Riesgo"},{"$f":"+G26","v":0}]
[5,"RESPUESTA A LOS RIESGOS",null,null,null,null,null,null,null,null,null,{"$f":"+H25","v":"Evitar Riesgo"},{"$f":"+I25","v":0}]
[null,5.0999999999999996,"ESTRATEGIA",null,"Mitigar Riesgo",null,null,"Evitar Riesgo",null,null,null,{"$f":"+H26","v":"Transferir Riesgo"},{"$f":"+I26","v":"X"}]
[null,null,null,null,"Aceptar Riesgo",null,null,"Transferir Riesgo","X"]
[null,5.2,"DISPARADOR DE RIESGO",null,"NO SE CUMPLE CON LIMITES PERMISIBLES DE CONTAMINACION - SUPERVISOR DETECTA CONTAMINACION - RECLAMOS O DENUNCIA POR PARTE DE AUTORIDADES O DE LA COMUNIDAD",null,null,null,null,null,null,null,{"$f":"IFERROR(INDEX(L22:M26,MATCH(IF(M22>0,M22,IF(M23>0,M23,IF(M24>0,M24,IF(M25>0,M25,IF(M26>0,M26,\"\"))))),M22:M26,0),1),\"\")","v":"Transferir Riesgo"}]
[null,5.3,"ACCIONES PARA DAR RESPUESTA AL RIESGO",null,"*SUPERVISION CONTROLA LA EJECUCION DEL PLAN DE MANEJO AMBIENTAL  Y DE SER NECESARIO ADECUA EL PLAN A LAS NECESIDADES REALES.                                                                  *SUPERVISION CONTROLA EL USO DE LA MAQUINARIAS Y HORARIOS DE TRABAJO.                                                                                         * EJECUTOR A SU COSTO IMPLEMENTA MEDIDAS PARA CONTROLAR LOS IMPACTOS NEGATIVOS PROPIOS DE SUS ACTIVIDADES CONSTRUCTIVAS Y REPARA DAÑOS CAUSADOS AL MEDIO AMBIENTE."]

{"sheet":"007","index":7,"n_rows":28,"n_cols":13,"rows_kept":28,"cut":false,"hidden":false,"merged":[[0,0,0,8],[1,0,1,8],[2,0,3,0],[2,1,3,2],[2,3,2,4],[2,5,2,8],[3,3,3,4],[3,5,3,8],[9,1,11,1],[9,2,11,3],[9,4,9,5],[9,6,9,8],[4,0,5,0],[4,1,5,2],[4,3,4,4],[4,5,4,8],[5,3,5,4],[5,5,5,8],[10,4,10,5],[10,6,10,8],[11,4,11,5],[11,6,11,8],[6,0,11,0],[6,1,6,8],[12,0,22,0],[12,1,12,8],[13,1,18,1],[13,2,13,4],[13,5,18,5],[13,6,13,8],[20,1,22,1],[20,2,20,8],[21,2,22,3],[21,4,22,4],[21,5,22,6],[21,7,22,8],[7,2,7,3],[7,4,7,8],[8,2,8,3],[8,4,8,8],[19,2,19,3],[19,6,19,7],[23,0,27,0],[23,1,23,8],[24,1,25,1],[24,2,25,3],[24,4,24,5],[25,4,25,5],[26,2,26,3],[26,4,26,8],[27,2,27,3],[27,4,27,8]]}
["Anexo N° 01",null,null,null,null,null,null,null,null,"Regresar"]
["Formato para identificar, analizar y dar respuesta a riesgos"]
[1,"NÚMERO Y FECHA DEL DOCUMENTO",null,"Número",null,"07"]
[null,null,null,"Fecha",null,{"$f":"'001'!F4:I4","v":"ABRIL DEL 2022"}]
[2,"DATOS GENERALES DEL PROYECTO",null,"Nombre del Proyecto",null,{"$f":"'001'!F5:I5","v":"‘‘MEJORAMIENTO DE LAS VÍAS DE CIRCULACIÓN INTERNA, SEÑALIZACIÓN Y ORNATO EN LA SEDE CENTRAL DE LA UNIVERSIDAD NACIONAL DE EDUCACIÓN ENRIQUE GUZMÁN Y VALLE’’ – SALDO DE OBRA – 1ERA ETAPA"}]
[null,null,null,"Ubicación Geográfica",null,{"$f":"'001'!F6:I6","v":"DISTRITO CHOSICA, PROVINCIA LURIGANCHO, DEPARTAMENTO LIMA"}]
[3,"IDENTIFICACIÓN DE RIESGOS"]
[null,3.1,"CÓDIGO DE RIESGO",null,{"$f":"+'F-3. ASIGNACION RIESGOS '!A15","v":"VIAS-UNE-007"}]
[null,3.2,"DESCRIPCIÓN DEL RIESGO",null,{"$f":"+'F-3. ASIGNACION RIESGOS '!B15","v":"RIESGO DE ATRASOS POR DEMORA EN ATENCION DE CONSULTAS SOBRE OCURRENCIAS DE OBRA"}]
[null,3.3,"CAUSA(S) GENERADORA(S)",null,"Causa N° 1",null,"SUPERVISION NO ATIENDE CONSULTAS OPORTUNAMENTE"]
[null,null,null,null,"Causa N° 2",null,"PROYECTISTA NO ATIENDE CONSULTAS OPORTUNAMENTE"]
[null,null,null,null,"Causa N° 3",null,"EXCESO DE GESTIONES O TRAMITE EN LA ENTIDAD"]
[4,"ANÁLISIS CUALITATIVO DE RIESGOS"]
[null,4.0999999999999996,"PROBABILIDAD DE OCURRENCIA",null,null,4.2,"IMPACTO EN LA EJECUCIÓN DE LA OBRA"]
[null,null,"Muy baja ",{"$f":"+'[3]F-2. MATRIZ PROB E IMPACTO.'!C11","v":0.1},null,null,"Muy bajo",{"$f":"+'[3]F-2. MATRIZ PROB E IMPACTO.'!D12","v":0.05}]
[null,null,"Baja ",{"$f":"+'[3]F-2. MATRIZ PROB E IMPACTO.'!C10","v":0.3},null,null,"Bajo",{"$f":"+'[3]F-2. MATRIZ PROB E IMPACTO.'!E12","v":0.1}]
[null,null,"Moderada ",{"$f":"+'[3]F-2. MATRIZ PROB E IMPACTO.'!C9","v":0.5},"X",null,"Moderado",{"$f":"+'[3]F-2. MATRIZ PROB E IMPACTO.'!F12","v":0.2}]
[null,null,"Alta ",{"$f":"+'[3]F-2. MATRIZ PROB E IMPACTO.'!C8","v":0.7},null,null,"Alto",{"$f":"+'[3]F-2. MATRIZ PROB E IMPACTO.'!G12","v":0.4},"X"]
[null,null,"Muy alta ",{"$f":"+'[3]F-2. MATRIZ PROB E IMPACTO.'!C7","v":0.9},null,null,"Muy alto ",{"$f":"+'[3]F-2. MATRIZ PROB E IMPACTO.'!H12","v":0.8}]
[null,null,{"$f":"IFERROR(INDEX(C15:E19,MATCH(IF(E15>0,E15,IF(E16>0,E16,IF(E17>0,E17,IF(E18>0,E18,IF(E19>0,E19,\"\"))))),E15:E19,0),1),\"\")","v":"Moderada "},null,{"$f":"IFERROR(INDEX(D15:E19,MATCH(IF(E15>0,E15,IF(E16>0,E16,IF(E17>0,E17,IF(E18>0,E18,IF(E19>0,E19,\"\"))))),E15:E19,0),1),\"\")","v":0.5},null,{"$f":"IFERROR(INDEX(G15:I19,MATCH(IF(I15>0,I15,IF(I16>0,I16,IF(I17>0,I17,IF(I18>0,I18,IF(I19>0,I19,\"\"))))),I15:I19,0),1),\"\")","v":"Alto"},null,{"$f":"IFERROR(INDEX(H15:I19,MATCH(IF(I15>0,I15,IF(I16>0,I16,IF(I17>0,I17,IF(I18>0,I18,IF(I19>0,I19,\"\"))))),I15:I19,0),1),\"\")","v":0.4}]
[null,4.3,"PRIORIZACIÓN DEL RIESGO"]
[null,null,"Puntuación del Riesgo =Probabilidad x \nImpacto",null,{"$f":"+IFERROR(ROUND(E20*I20,3),0)","v":0.2},"Prioridad\ndel Riesgo ",null,{"$f":"+IF(E22=0,\"\",IF(AND(E22>=MIN('F-2. MATRIZ PROB E IMPACTO.'!F7:H7,'F-2. MATRIZ PROB E IMPACTO.'!G8:H8,'F-2. MATRIZ PROB E IMPACTO.'!G9:H9,'F-2. MATRIZ PROB E IMPACTO.'!H10),E22<=MAX('F-2. MATRIZ PROB E IMPACTO.'!F7:H7,'F-2. MATRIZ PROB E IMPACTO.'!G8:H8,'F-2. MATRIZ PROB E IMPACTO.'!G9:H9,'F-2. MATRIZ PROB E IMPACTO.'!H10)),\"Alta Prioridad\",IF(AND(E22>=MIN('F-2. MATRIZ PROB E IMPACTO.'!E7:E8,'F-2. MATRIZ PROB E IMPACTO.'!F8:F10,'F-2. MATRIZ PROB E IMPACTO.'!G10,'F-2. MATRIZ PROB E IMPACTO.'!H11),E22<=MAX('F-2. MATRIZ PROB E IMPACTO.'!E7:E8,'F-2. MATRIZ PROB E IMPACTO.'!F8:F10,'F-2. MATRIZ PROB E IMPACTO.'!G10,'F-2. MATRIZ PROB E IMPACTO.'!H11)),\"Prioridad Moderada\",IF(AND(E22>=MIN('F-2. MATRIZ PROB E IMPACTO.'!D7:D11,'F-2. MATRIZ PROB E IMPACTO.'!E9:E11,'F-2. MATRIZ PROB E IMPACTO.'!F11,'F-2. MATRIZ PROB E IMPACTO.'!G11),E22<=MAX('F-2. MATRIZ PROB E IMPACTO.'!D7:D11,'F-2. MATRIZ PROB E IMPACTO.'!E9:E11,'F-2. MATRIZ PROB E IMPACTO.'!F11,'F-2. MATRIZ PROB E IMPACTO.'!G11,)),\"Baja Prioridad\",\"\"))))","v":"Alta Prioridad"},null,null,null,{"$f":"+E25","v":"Mitigar Riesgo"},{"$f":"+G25","v":0}]
[null,null,null,null,null,null,null,null,null,null,null,{"$f":"+E26","v":"Aceptar Riesgo"},{"$f":"+G26","v":"X"}]
[5,"RESPUESTA A LOS RIESGOS",null,null,null,null,null,null,null,null,null,{"$f":"+H25","v":"Evitar Riesgo"},{"$f":"+I25","v":0}]
[null,5.0999999999999996,"ESTRATEGIA",null,"Mitigar Riesgo",null,null,"Evitar Riesgo",null,null,null,{"$f":"+H26","v":"Transferir Riesgo"},{"$f":"+I26","v":0}]
[null,null,null,null,"Aceptar Riesgo",null,"X","Transferir Riesgo"]
[null,5.2,"DISPARADOR DE RIESGO",null,"EJECUTOR ANOTA EN EL CUADERNO DE OBRA LA OCURRENCIA",null,null,null,null,null,null,null,{"$f":"IFERROR(INDEX(L22:M26,MATCH(IF(M22>0,M22,IF(M23>0,M23,IF(M24>0,M24,IF(M25>0,M25,IF(M26>0,M26,\"\"))))),M22:M26,0),1),\"\")","v":"Aceptar Riesgo"}]
[null,5.3,"ACCIONES PARA DAR RESPUESTA AL RIESGO",null," * AREA DE OBRAS EQUIPAMIENTO Y MANTENIMIENTO EVALUA SI CONSULTA DEBE SER ATENDIDA POR LA SUPERVISION Y DE SER EL CASO  EXIGE A LA SUPERVISION ATENDER LA CONSULTA.                                                                                                           * CONSULTAS SUSTANCIALES SOBRE OCURRENCIAS DE OBRA SON DIRECTAMENTE NOTIFICADAS AL PROYECTISTA O COORDINADOR DE PROYECTO POR EL AREA DE OBRAS EQUIPAMIENTO Y MANTENIMIENTO.                                                                                                                             *ANTE FALTA DE ATENCION A CONSULTA LA AREA DE ESTUDIOS Y PROYECTOS TOMA ACCIONES PARA  ATENCION PRIORITARIA A TRAVES DE ESPECIALISTA TENIENDO EN CUENTA LOS PLAZOS DE LEY.                                        "]

{"sheet":"008","index":8,"n_rows":30,"n_cols":13,"rows_kept":30,"cut":false,"hidden":false,"merged":[[25,0,29,0],[25,1,25,8],[26,1,27,1],[26,2,27,3],[26,4,26,5],[27,4,27,5],[28,2,28,3],[28,4,28,8],[29,2,29,3],[29,4,29,8],[7,2,7,3],[7,4,7,8],[8,2,8,3],[8,4,8,8],[21,2,21,3],[21,6,21,7],[11,4,11,5],[12,4,12,5],[11,6,11,8],[12,6,12,8],[14,0,24,0],[14,1,14,8],[15,1,20,1],[15,2,15,4],[15,5,20,5],[15,6,15,8],[22,1,24,1],[22,2,22,8],[23,2,24,3],[23,4,24,4],[23,5,24,6],[23,7,24,8],[9,1,13,1],[9,2,13,3],[9,4,9,5],[9,6,9,8],[4,0,5,0],[4,1,5,2],[4,3,4,4],[4,5,4,8],[5,3,5,4],[5,5,5,8],[10,4,10,5],[10,6,10,8],[13,4,13,5],[13,6,13,8],[6,0,13,0],[6,1,6,8],[0,0,0,8],[1,0,1,8],[2,0,3,0],[2,1,3,2],[2,3,2,4],[2,5,2,8],[3,3,3,4],[3,5,3,8]]}
["Anexo N° 01",null,null,null,null,null,null,null,null,"Regresar"]
["Formato para identificar, analizar y dar respuesta a riesgos"]
[1,"NÚMERO Y FECHA DEL DOCUMENTO",null,"Número",null,"08"]
[null,null,null,"Fecha",null,{"$f":"'001'!F4:I4","v":"ABRIL DEL 2022"}]
[2,"DATOS GENERALES DEL PROYECTO",null,"Nombre del Proyecto",null,{"$f":"'001'!F5:I5","v":"‘‘MEJORAMIENTO DE LAS VÍAS DE CIRCULACIÓN INTERNA, SEÑALIZACIÓN Y ORNATO EN LA SEDE CENTRAL DE LA UNIVERSIDAD NACIONAL DE EDUCACIÓN ENRIQUE GUZMÁN Y VALLE’’ – SALDO DE OBRA – 1ERA ETAPA"}]
[null,null,null,"Ubicación Geográfica",null,{"$f":"'001'!F6:I6","v":"DISTRITO CHOSICA, PROVINCIA LURIGANCHO, DEPARTAMENTO LIMA"}]
[3,"IDENTIFICACIÓN DE RIESGOS"]
[null,3.1,"CÓDIGO DE RIESGO",null,{"$f":"+'F-3. ASIGNACION RIESGOS '!A16","v":"VIAS-UNE-008"}]
[null,3.2,"DESCRIPCIÓN DEL RIESGO",null,{"$f":"+'F-3. ASIGNACION RIESGOS '!B16","v":"RIESGO DE ACCIDENTES GRAVES Y MUY GRAVES PRODUCTO DE LA EJECUCION DE LA OBRA"}]
[null,3.3,"CAUSA(S) GENERADORA(S)",null,"Causa N° 1",null,"EQUIPO DE PROTECCION PERSONAL INADECUADO O INEXISTENTE"]
[null,null,null,null,"Causa N° 2",null,"PERSONAL NO CUENTA CON CAPACITACION Y ENTRENAMIENTO EN TEMAS DE SEGURIDAD Y SALUD OCUPACIONAL"]
[null,null,null,null,"Causa N° 3",null,"CONDICIONES INSEGURAS - FALTA DE SEÑALIZACION"]
[null,null,null,null,"Causa N° 4",null,"NO HAY PREVENCIONISTA DE RIESGO EN LA OBRA"]
[null,null,null,null,"Causa N° 5",null,"NEGLIGENCIA DEL PERSONAL OBRERO"]
[4,"ANÁLISIS CUALITATIVO DE RIESGOS"]
[null,4.0999999999999996,"PROBABILIDAD DE OCURRENCIA",null,null,4.2,"IMPACTO EN LA EJECUCIÓN DE LA OBRA"]
[null,null,"Muy baja ",{"$f":"+'[4]F-2. MATRIZ PROB E IMPACTO.'!C11","v":0.1},null,null,"Muy bajo",{"$f":"+'[4]F-2. MATRIZ PROB E IMPACTO.'!D12","v":0.05}]
[null,null,"Baja ",{"$f":"+'[4]F-2. MATRIZ PROB E IMPACTO.'!C10","v":0.3},null,null,"Bajo",{"$f":"+'[4]F-2. MATRIZ PROB E IMPACTO.'!E12","v":0.1}]
[null,null,"Moderada ",{"$f":"+'[4]F-2. MATRIZ PROB E IMPACTO.'!C9","v":0.5},"X",null,"Moderado",{"$f":"+'[4]F-2. MATRIZ PROB E IMPACTO.'!F12","v":0.2}]
[null,null,"Alta ",{"$f":"+'[4]F-2. MATRIZ PROB E IMPACTO.'!C8","v":0.7},null,null,"Alto",{"$f":"+'[4]F-2. MATRIZ PROB E IMPACTO.'!G12","v":0.4}]
[null,null,"Muy alta ",{"$f":"+'[4]F-2. MATRIZ PROB E IMPACTO.'!C7","v":0.9},null,null,"Muy alto ",{"$f":"+'[4]F-2. MATRIZ PROB E IMPACTO.'!H12","v":0.8},"X"]
[null,null,{"$f":"IFERROR(INDEX(C17:E21,MATCH(IF(E17>0,E17,IF(E18>0,E18,IF(E19>0,E19,IF(E20>0,E20,IF(E21>0,E21,\"\"))))),E17:E21,0),1),\"\")","v":"Moderada "},null,{"$f":"IFERROR(INDEX(D17:E21,MATCH(IF(E17>0,E17,IF(E18>0,E18,IF(E19>0,E19,IF(E20>0,E20,IF(E21>0,E21,\"\"))))),E17:E21,0),1),\"\")","v":0.5},null,{"$f":"IFERROR(INDEX(G17:I21,MATCH(IF(I17>0,I17,IF(I18>0,I18,IF(I19>0,I19,IF(I20>0,I20,IF(I21>0,I21,\"\"))))),I17:I21,0),1),\"\")","v":"Muy alto "},null,{"$f":"IFERROR(INDEX(H17:I21,MATCH(IF(I17>0,I17,IF(I18>0,I18,IF(I19>0,I19,IF(I20>0,I20,IF(I21>0,I21,\"\"))))),I17:I21,0),1),\"\")","v":0.8}]
[null,4.3,"PRIORIZACIÓN DEL RIESGO"]
[null,null,"Puntuación del Riesgo =Probabilidad x \nImpacto",null,{"$f":"+IFERROR(ROUND(E22*I22,3),0)","v":0.4},"Prioridad\ndel Riesgo ",null,{"$f":"+IF(E24=0,\"\",IF(AND(E24>=MIN('[4]F-2. MATRIZ PROB E IMPACTO.'!F7:H7,'[4]F-2. MATRIZ PROB E IMPACTO.'!G8:H8,'[4]F-2. MATRIZ PROB E IMPACTO.'!G9:H9,'[4]F-2. MATRIZ PROB E IMPACTO.'!H10),E24<=MAX('[4]F-2. MATRIZ PROB E IMPACTO.'!F7:H7,'[4]F-2. MATRIZ PROB E IMPACTO.'!G8:H8,'[4]F-2. MATRIZ PROB E IMPACTO.'!G9:H9,'[4]F-2. MATRIZ PROB E IMPACTO.'!H10)),\"Alta Prioridad\",IF(AND(E24>=MIN('[4]F-2. MATRIZ PROB E IMPACTO.'!E7:E8,'[4]F-2. MATRIZ PROB E IMPACTO.'!F8:F10,'[4]F-2. MATRIZ PROB E IMPACTO.'!G10,'[4]F-2. MATRIZ PROB E IMPACTO.'!H11),E24<=MAX('[4]F-2. MATRIZ PROB E IMPACTO.'!E7:E8,'[4]F-2. MATRIZ PROB E IMPACTO.'!F8:F10,'[4]F-2. MATRIZ PROB E IMPACTO.'!G10,'[4]F-2. MATRIZ PROB E IMPACTO.'!H11)),\"Prioridad Moderada\",IF(AND(E24>=MIN('[4]F-2. MATRIZ PROB E IMPACTO.'!D7:D11,'[4]F-2. MATRIZ PROB E IMPACTO.'!E9:E11,'[4]F-2. MATRIZ PROB E IMPACTO.'!F11,'[4]F-2. MATRIZ PROB E IMPACTO.'!G11),E24<=MAX('[4]F-2. MATRIZ PROB E IMPACTO.'!D7:D11,'[4]F-2. MATRIZ PROB E IMPACTO.'!E9:E11,'[4]F-2. MATRIZ PROB E IMPACTO.'!F11,'[4]F-2. MATRIZ PROB E IMPACTO.'!G11,)),\"Baja Prioridad\",\"\"))))","v":"Alta Prioridad"},null,null,null,{"$f":"+E27","v":"Mitigar Riesgo"},{"$f":"+G27","v":0}]
[null,null,null,null,null,null,null,null,null,null,null,{"$f":"+E28","v":"Aceptar Riesgo"},{"$f":"+G28","v":0}]
[5,"RESPUESTA A LOS RIESGOS",null,null,null,null,null,null,null,null,null,{"$f":"+H27","v":"Evitar Riesgo"},{"$f":"+I27","v":0}]
[null,5.0999999999999996,"ESTRATEGIA",null,"Mitigar Riesgo",null,null,"Evitar Riesgo",null,null,null,{"$f":"+H28","v":"Transferir Riesgo"},{"$f":"+I28","v":"X"}]
[null,null,null,null,"Aceptar Riesgo",null,null,"Transferir Riesgo","X"]
[null,5.2,"DISPARADOR DE RIESGO",null,"SE PRODUCE EL ACCIDENTE",null,null,null,null,null,null,null,{"$f":"IFERROR(INDEX(L24:M28,MATCH(IF(M24>0,M24,IF(M25>0,M25,IF(M26>0,M26,IF(M27>0,M27,IF(M28>0,M28,\"\"))))),M24:M28,0),1),\"\")","v":"Transferir Riesgo"}]
[null,5.3,"ACCIONES PARA DAR RESPUESTA AL RIESGO",null,"*ES OBLIGACION DEL EJECUTOR QUE TODO SU PERSONAL CUENTE CON SEGUROS CONTRA TODO RIESGO (SCTR)                                                                    * EJECUTOR REALIZA CHARLAS DIARIAS DE INDUCCION                                                                                                           *SUPERVISION EXIGE PRESENCIA PERMANENTE DE PREVENCIONISTA DE RIESGO                                                                                                            *EJECUTOR IMPLEMENTA PLAN DE CONTINGENCIA EN CASO DE ACCIDENTES EN OBRA                                                                                                              * EJECUTOR DISEÑA E IMPLEMENTA UN PLAN DE SEGURIDAD Y SALUD EN EL TRABAJO.                                                                                                              * EL EJECUTOR ES RESPONSABLE DE CUBRIR LOS COSTOS POR ACCIDENTES  PRODUCTO DE LA EJECUCION DE LA OBRA .                                                                                            * EJECUTOR DEBE CONTRATAR Y PRESENTAR SEGUROS OBLIGATORIOS PARA EL PERSONAL ENCARGADO DE LA CONSTRUCCION Y MANTENERLO VIGENTE DURANTE EL PERIODO DE EJECUCION DE LA OBRA                                                                                  * SUPERVISION SOLICITA, INSPECCIONA Y EXIGE CUMPLIMIENTO DE PLAN DE SEGURIDAD Y SALUD EN EL TRABAJO.                                                                                    * EJECUTOR DISEÑA E IMPLEMENTA UN PLAN DE EMERGENCIA Y PRIMEROS AUXILIOS (ANTE POSIBLE ACCIDENTE DE OBREROS POR TRABAJOS REALIZADOS EN LA EJECUCION DE OBRA).                                                                                                              * EJECUTOR CUENTA CON EQUIPOS DE PRIMEROS AUXILIOS Y  MOVILIDAD EXCLUSIVA PARA TRASLADO DE PERSONAL OBRERO, TECNICO, PROFESIONAL U OTRAS PERSONAS ACCIDENTADAS PRODUCTO DE LA EJECUCION DE LAS OBRAS, A CENTRO DE SALUD, CLINICA U HOSPITAL.        "]

{"sheet":"009","index":9,"n_rows":29,"n_cols":13,"rows_kept":29,"cut":false,"hidden":false,"merged":[[24,0,28,0],[24,1,24,8],[25,1,26,1],[25,2,26,3],[25,4,25,5],[26,4,26,5],[27,2,27,3],[27,4,27,8],[28,2,28,3],[28,4,28,8],[7,2,7,3],[7,4,7,8],[8,2,8,3],[8,4,8,8],[20,2,20,3],[20,6,20,7],[11,4,11,5],[11,6,11,8],[13,0,23,0],[13,1,13,8],[14,1,19,1],[14,2,14,4],[14,5,19,5],[14,6,14,8],[21,1,23,1],[21,2,21,8],[22,2,23,3],[22,4,23,4],[22,5,23,6],[22,7,23,8],[9,1,12,1],[9,2,12,3],[9,4,9,5],[9,6,9,8],[4,0,5,0],[4,1,5,2],[4,3,4,4],[4,5,4,8],[5,3,5,4],[5,5,5,8],[10,4,10,5],[10,6,10,8],[12,4,12,5],[12,6,12,8],[6,0,12,0],[6,1,6,8],[0,0,0,8],[1,0,1,8],[2,0,3,0],[2,1,3,2],[2,3,2,4],[2,5,2,8],[3,3,3,4],[3,5,3,8]]}
["Anexo N° 01",null,null,null,null,null,null,null,null,"Regresar"]
["Formato para identificar, analizar y dar respuesta a riesgos"]
[1,"NÚMERO Y FECHA DEL DOCUMENTO",null,"Número",null,"09"]
[null,null,null,"Fecha",null,{"$f":"'001'!F4:I4","v":"ABRIL DEL 2022"}]
[2,"DATOS GENERALES DEL PROYECTO",null,"Nombre del Proyecto",null,{"$f":"'001'!F5:I5","v":"‘‘MEJORAMIENTO DE LAS VÍAS DE CIRCULACIÓN INTERNA, SEÑALIZACIÓN Y ORNATO EN LA SEDE CENTRAL DE LA UNIVERSIDAD NACIONAL DE EDUCACIÓN ENRIQUE GUZMÁN Y VALLE’’ – SALDO DE OBRA – 1ERA ETAPA"}]
[null,null,null,"Ubicación Geográfica",null,{"$f":"'001'!F6:I6","v":"DISTRITO CHOSICA, PROVINCIA LURIGANCHO, DEPARTAMENTO LIMA"}]
[3,"IDENTIFICACIÓN DE RIESGOS"]
[null,3.1,"CÓDIGO DE RIESGO",null,{"$f":"+'F-3. ASIGNACION RIESGOS '!A17","v":"VIAS-UNE-009"}]
[null,3.2,"DESCRIPCIÓN DEL RIESGO",null,{"$f":"+'F-3. ASIGNACION RIESGOS '!B17","v":"DEFICIENTE GESTION OPERATIVA Y ADMINISTRATIVA DE LA OBRA"}]
[null,3.3,"CAUSA(S) GENERADORA(S)",null,"Causa N° 1",null,"PERSONAL TECNICO Y PROFESIONAL OFERTADO POR EL EJECUTOR NO SE ENCUENTRA EN OBRA"]
[null,null,null,null,"Causa N° 2",null,"PERSONAL TECNICO Y PROFESIONAL DEL EJECUTOR NO CUENTA CON LOS MEDIOS  O RECURSOS PARA DESARROLLAR SU LABOR"]
[null,null,null,null,"Causa N° 3",null,"OMISION DE NORMAS DE CALIDAD Y BUENAS PRACTICAS CONSTRUCTIVAS"]
[null,null,null,null,"Causa N° 4",null,"CONTROL INADECUADO Y/O INOPORTUNO DE LA SUPERVISION"]
[4,"ANÁLISIS CUALITATIVO DE RIESGOS"]
[null,4.0999999999999996,"PROBABILIDAD DE OCURRENCIA",null,null,4.2,"IMPACTO EN LA EJECUCIÓN DE LA OBRA"]
[null,null,"Muy baja ",{"$f":"+'[4]F-2. MATRIZ PROB E IMPACTO.'!C11","v":0.1},null,null,"Muy bajo",{"$f":"+'[4]F-2. MATRIZ PROB E IMPACTO.'!D12","v":0.05}]
[null,null,"Baja ",{"$f":"+'[4]F-2. MATRIZ PROB E IMPACTO.'!C10","v":0.3},null,null,"Bajo",{"$f":"+'[4]F-2. MATRIZ PROB E IMPACTO.'!E12","v":0.1}]
[null,null,"Moderada ",{"$f":"+'[4]F-2. MATRIZ PROB E IMPACTO.'!C9","v":0.5},"X",null,"Moderado",{"$f":"+'[4]F-2. MATRIZ PROB E IMPACTO.'!F12","v":0.2}]
[null,null,"Alta ",{"$f":"+'[4]F-2. MATRIZ PROB E IMPACTO.'!C8","v":0.7},null,null,"Alto",{"$f":"+'[4]F-2. MATRIZ PROB E IMPACTO.'!G12","v":0.4},"x"]
[null,null,"Muy alta ",{"$f":"+'[4]F-2. MATRIZ PROB E IMPACTO.'!C7","v":0.9},null,null,"Muy alto ",{"$f":"+'[4]F-2. MATRIZ PROB E IMPACTO.'!H12","v":0.8}]
[null,null,{"$f":"IFERROR(INDEX(C16:E20,MATCH(IF(E16>0,E16,IF(E17>0,E17,IF(E18>0,E18,IF(E19>0,E19,IF(E20>0,E20,\"\"))))),E16:E20,0),1),\"\")","v":"Moderada "},null,{"$f":"IFERROR(INDEX(D16:E20,MATCH(IF(E16>0,E16,IF(E17>0,E17,IF(E18>0,E18,IF(E19>0,E19,IF(E20>0,E20,\"\"))))),E16:E20,0),1),\"\")","v":0.5},null,{"$f":"IFERROR(INDEX(G16:I20,MATCH(IF(I16>0,I16,IF(I17>0,I17,IF(I18>0,I18,IF(I19>0,I19,IF(I20>0,I20,\"\"))))),I16:I20,0),1),\"\")","v":"Alto"},null,{"$f":"IFERROR(INDEX(H16:I20,MATCH(IF(I16>0,I16,IF(I17>0,I17,IF(I18>0,I18,IF(I19>0,I19,IF(I20>0,I20,\"\"))))),I16:I20,0),1),\"\")","v":0.4}]
[null,4.3,"PRIORIZACIÓN DEL RIESGO"]
[null,null,"Puntuación del Riesgo =Probabilidad x \nImpacto",null,{"$f":"+IFERROR(ROUND(E21*I21,3),0)","v":0.2},"Prioridad\ndel Riesgo ",null,{"$f":"+IF(E23=0,\"\",IF(AND(E23>=MIN('[4]F-2. MATRIZ PROB E IMPACTO.'!F7:H7,'[4]F-2. MATRIZ PROB E IMPACTO.'!G8:H8,'[4]F-2. MATRIZ PROB E IMPACTO.'!G9:H9,'[4]F-2. MATRIZ PROB E IMPACTO.'!H10),E23<=MAX('[4]F-2. MATRIZ PROB E IMPACTO.'!F7:H7,'[4]F-2. MATRIZ PROB E IMPACTO.'!G8:H8,'[4]F-2. MATRIZ PROB E IMPACTO.'!G9:H9,'[4]F-2. MATRIZ PROB E IMPACTO.'!H10)),\"Alta Prioridad\",IF(AND(E23>=MIN('[4]F-2. MATRIZ PROB E IMPACTO.'!E7:E8,'[4]F-2. MATRIZ PROB E IMPACTO.'!F8:F10,'[4]F-2. MATRIZ PROB E IMPACTO.'!G10,'[4]F-2. MATRIZ PROB E IMPACTO.'!H11),E23<=MAX('[4]F-2. MATRIZ PROB E IMPACTO.'!E7:E8,'[4]F-2. MATRIZ PROB E IMPACTO.'!F8:F10,'[4]F-2. MATRIZ PROB E IMPACTO.'!G10,'[4]F-2. MATRIZ PROB E IMPACTO.'!H11)),\"Prioridad Moderada\",IF(AND(E23>=MIN('[4]F-2. MATRIZ PROB E IMPACTO.'!D7:D11,'[4]F-2. MATRIZ PROB E IMPACTO.'!E9:E11,'[4]F-2. MATRIZ PROB E IMPACTO.'!F11,'[4]F-2. MATRIZ PROB E IMPACTO.'!G11),E23<=MAX('[4]F-2. MATRIZ PROB E IMPACTO.'!D7:D11,'[4]F-2. MATRIZ PROB E IMPACTO.'!E9:E11,'[4]F-2. MATRIZ PROB E IMPACTO.'!F11,'[4]F-2. MATRIZ PROB E IMPACTO.'!G11,)),\"Baja Prioridad\",\"\"))))","v":"Alta Prioridad"},null,null,null,{"$f":"+E26","v":"Mitigar Riesgo"},{"$f":"+G26","v":0}]
[null,null,null,null,null,null,null,null,null,null,null,{"$f":"+E27","v":"Aceptar Riesgo"},{"$f":"+G27","v":0}]
[5,"RESPUESTA A LOS RIESGOS",null,null,null,null,null,null,null,null,null,{"$f":"+H26","v":"Evitar Riesgo"},{"$f":"+I26","v":0}]
[null,5.0999999999999996,"ESTRATEGIA",null,"Mitigar Riesgo",null,null,"Evitar Riesgo",null,null,null,{"$f":"+H27","v":"Transferir Riesgo"},{"$f":"+I27","v":"X"}]
[null,null,null,null,"Aceptar Riesgo",null,null,"Transferir Riesgo","X"]
[null,5.2,"DISPARADOR DE RIESGO",null,"SE EVIDENCIAN DEFECTOS DURANTE EL PROCESO CONSTRUCTIVO Y MALA ADMINISTRACION DE LA OBRA",null,null,null,null,null,null,null,{"$f":"IFERROR(INDEX(L23:M27,MATCH(IF(M23>0,M23,IF(M24>0,M24,IF(M25>0,M25,IF(M26>0,M26,IF(M27>0,M27,\"\"))))),M23:M27,0),1),\"\")","v":"Transferir Riesgo"}]
[null,5.3,"ACCIONES PARA DAR RESPUESTA AL RIESGO",null,"* EXIGIR AL EJECUTOR LA PRESENCIA DE PERSONAL CLAVE.                                                                                                  * EXIGIR USO DE RECURSOS CONSIDERADOS EN EL COSTO DIRECTO E INDIRECTO DE LA OBRA                                                                                                                                  * SUPERVISION EVALUA Y SOLICITA EL CAMBIO DE PERSONAL PROFESIONAL Y TECNICO                                                                                                                                                                                                                                                                             * SUPERVISION ESTABLECE MECANISMOS DE ASEGURAMIENTO DE CUMPLIMIENTO DE LAS NORMAS TECNICAS DE CALIDAD, SEGURIDAD SALUD Y BUENAS PRACTICAS CONSTRUCTIVAS, SEGUN NORMATIVA VIGENTE.                                                                                                                                                  * VERIFICAR A TRAVES DEL SUPERVISOR, LA CORRECTA GESTION OPERATIVA Y ADMINISTRATIVA DE LA OBRA MEDIANTE VISITAS, REUNIONES, ENVIO DE MATERIAL VISUAL U OTROS MECANISMOS QUE PERMITAN CONOCER EL ESTADO SITUACIONAL DE LA OBRA (AVANCE DE OBRA)"]

{"sheet":"010","index":10,"n_rows":27,"n_cols":13,"rows_kept":27,"cut":false,"hidden":false,"merged":[[22,0,26,0],[22,1,22,8],[23,1,24,1],[23,2,24,3],[23,4,23,5],[24,4,24,5],[25,2,25,3],[25,4,25,8],[26,2,26,3],[26,4,26,8],[7,2,7,3],[7,4,7,8],[8,2,8,3],[8,4,8,8],[19,2,19,3],[19,6,19,7],[12,0,21,0],[12,1,12,8],[13,1,18,1],[13,2,13,4],[13,5,18,5],[13,6,13,8],[20,1,21,1],[20,2,20,8],[21,2,21,3],[21,5,21,6],[21,7,21,8],[9,1,11,1],[9,2,11,3],[9,4,9,5],[9,6,9,8],[4,0,5,0],[4,1,5,2],[4,3,4,4],[4,5,4,8],[5,3,5,4],[5,5,5,8],[10,4,10,5],[10,6,10,8],[11,4,11,5],[11,6,11,8],[6,0,11,0],[6,1,6,8],[0,0,0,8],[1,0,1,8],[2,0,3,0],[2,1,3,2],[2,3,2,4],[2,5,2,8],[3,3,3,4],[3,5,3,8]]}
["Anexo N° 01",null,null,null,null,null,null,null,null,"Regresar"]
["Formato para identificar, analizar y dar respuesta a riesgos"]
[1,"NÚMERO Y FECHA DEL DOCUMENTO",null,"Número",null,10]
[null,null,null,"Fecha",null,{"$f":"'001'!F4:I4","v":"ABRIL DEL 2022"}]
[2,"DATOS GENERALES DEL PROYECTO",null,"Nombre del Proyecto",null,{"$f":"'001'!F5:I5","v":"‘‘MEJORAMIENTO DE LAS VÍAS DE CIRCULACIÓN INTERNA, SEÑALIZACIÓN Y ORNATO EN LA SEDE CENTRAL DE LA UNIVERSIDAD NACIONAL DE EDUCACIÓN ENRIQUE GUZMÁN Y VALLE’’ – SALDO DE OBRA – 1ERA ETAPA"}]
[null,null,null,"Ubicación Geográfica",null,{"$f":"'001'!F6:I6","v":"DISTRITO CHOSICA, PROVINCIA LURIGANCHO, DEPARTAMENTO LIMA"}]
[3,"IDENTIFICACIÓN DE RIESGOS"]
[null,3.1,"CÓDIGO DE RIESGO",null,{"$f":"+'F-3. ASIGNACION RIESGOS '!A18","v":"VIAS-UNE-010"}]
[null,3.2,"DESCRIPCIÓN DEL RIESGO",null,{"$f":"+'F-3. ASIGNACION RIESGOS '!B18","v":"RIESGO DE CONTAMINACION DE SUELO, AIRE Y AGUA"}]
[null,3.3,"CAUSA(S) GENERADORA(S)",null,"Causa N° 1",null,"MAL USO O MAL ESTADO DE MAQUINARIA Y EQUIPOS."]
[null,null,null,null,"Causa N° 2",null,"SE INCUMPLEN NORMATIVA Y MEDIDAS PAR EVITAR O MITIGAR LA CONTAMINACION AMBIENTAL."]
[null,null,null,null,"Causa N° 3",null,"PERSONAL DE OBRA NO ESTA CAPACITADO EN TEMAS AMBIENTALES."]
[4,"ANÁLISIS CUALITATIVO DE RIESGOS"]
[null,4.0999999999999996,"PROBABILIDAD DE OCURRENCIA",null,null,4.2,"IMPACTO EN LA EJECUCIÓN DE LA OBRA"]
[null,null,"Muy baja ",{"$f":"+'[4]F-2. MATRIZ PROB E IMPACTO.'!C11","v":0.1},null,null,"Muy bajo",{"$f":"+'[4]F-2. MATRIZ PROB E IMPACTO.'!D12","v":0.05}]
[null,null,"Baja ",{"$f":"+'[4]F-2. MATRIZ PROB E IMPACTO.'!C10","v":0.3},null,null,"Bajo",{"$f":"+'[4]F-2. MATRIZ PROB E IMPACTO.'!E12","v":0.1}]
[null,null,"Moderada ",{"$f":"+'[4]F-2. MATRIZ PROB E IMPACTO.'!C9","v":0.5},"X",null,"Moderado",{"$f":"+'[4]F-2. MATRIZ PROB E IMPACTO.'!F12","v":0.2}]
[null,null,"Alta ",{"$f":"+'[4]F-2. MATRIZ PROB E IMPACTO.'!C8","v":0.7},null,null,"Alto",{"$f":"+'[4]F-2. MATRIZ PROB E IMPACTO.'!G12","v":0.4},"X"]
[null,null,"Muy alta ",{"$f":"+'[4]F-2. MATRIZ PROB E IMPACTO.'!C7","v":0.9},null,null,"Muy alto ",{"$f":"+'[4]F-2. MATRIZ PROB E IMPACTO.'!H12","v":0.8}]
[null,null,{"$f":"IFERROR(INDEX(C15:E19,MATCH(IF(E15>0,E15,IF(E16>0,E16,IF(E17>0,E17,IF(E18>0,E18,IF(E19>0,E19,\"\"))))),E15:E19,0),1),\"\")","v":"Moderada "},null,{"$f":"IFERROR(INDEX(D15:E19,MATCH(IF(E15>0,E15,IF(E16>0,E16,IF(E17>0,E17,IF(E18>0,E18,IF(E19>0,E19,\"\"))))),E15:E19,0),1),\"\")","v":0.5},null,{"$f":"IFERROR(INDEX(G15:I19,MATCH(IF(I15>0,I15,IF(I16>0,I16,IF(I17>0,I17,IF(I18>0,I18,IF(I19>0,I19,\"\"))))),I15:I19,0),1),\"\")","v":"Alto"},null,{"$f":"IFERROR(INDEX(H15:I19,MATCH(IF(I15>0,I15,IF(I16>0,I16,IF(I17>0,I17,IF(I18>0,I18,IF(I19>0,I19,\"\"))))),I15:I19,0),1),\"\")","v":0.4}]
[null,4.3,"PRIORIZACIÓN DEL RIESGO"]
[null,null,"Puntuación del Riesgo =Probabilidad x \nImpacto",null,{"$f":"+IFERROR(ROUND(E20*I20,3),0)","v":0.2},"Prioridad\ndel Riesgo ",null,{"$f":"+IF(E22=0,\"\",IF(AND(E22>=MIN('[4]F-2. MATRIZ PROB E IMPACTO.'!F7:H7,'[4]F-2. MATRIZ PROB E IMPACTO.'!G8:H8,'[4]F-2. MATRIZ PROB E IMPACTO.'!G9:H9,'[4]F-2. MATRIZ PROB E IMPACTO.'!H10),E22<=MAX('[4]F-2. MATRIZ PROB E IMPACTO.'!F7:H7,'[4]F-2. MATRIZ PROB E IMPACTO.'!G8:H8,'[4]F-2. MATRIZ PROB E IMPACTO.'!G9:H9,'[4]F-2. MATRIZ PROB E IMPACTO.'!H10)),\"Alta Prioridad\",IF(AND(E22>=MIN('[4]F-2. MATRIZ PROB E IMPACTO.'!E7:E8,'[4]F-2. MATRIZ PROB E IMPACTO.'!F8:F10,'[4]F-2. MATRIZ PROB E IMPACTO.'!G10,'[4]F-2. MATRIZ PROB E IMPACTO.'!H11),E22<=MAX('[4]F-2. MATRIZ PROB E IMPACTO.'!E7:E8,'[4]F-2. MATRIZ PROB E IMPACTO.'!F8:F10,'[4]F-2. MATRIZ PROB E IMPACTO.'!G10,'[4]F-2. MATRIZ PROB E IMPACTO.'!H11)),\"Prioridad Moderada\",IF(AND(E22>=MIN('[4]F-2. MATRIZ PROB E IMPACTO.'!D7:D11,'[4]F-2. MATRIZ PROB E IMPACTO.'!E9:E11,'[4]F-2. MATRIZ PROB E IMPACTO.'!F11,'[4]F-2. MATRIZ PROB E IMPACTO.'!G11),E22<=MAX('[4]F-2. MATRIZ PROB E IMPACTO.'!D7:D11,'[4]F-2. MATRIZ PROB E IMPACTO.'!E9:E11,'[4]F-2. MATRIZ PROB E IMPACTO.'!F11,'[4]F-2. MATRIZ PROB E IMPACTO.'!G11,)),\"Baja Prioridad\",\"\"))))","v":"Alta Prioridad"},null,null,null,{"$f":"+E24","v":"Mitigar Riesgo"},{"$f":"+G24","v":0}]
[5,"RESPUESTA A LOS RIESGOS",null,null,null,null,null,null,null,null,null,{"$f":"+H24","v":"Evitar Riesgo"},{"$f":"+I24","v":0}]
[null,5.0999999999999996,"ESTRATEGIA",null,"Mitigar Riesgo",null,null,"Evitar Riesgo",null,null,null,{"$f":"+H25","v":"Transferir Riesgo"},{"$f":"+I25","v":"X"}]
[null,null,null,null,"Aceptar Riesgo",null,null,"Transferir Riesgo","X"]
[null,5.2,"DISPARADOR DE RIESGO",null,"NO SE CUMPLE CON LIMITES PERMISIBLES DE CONTAMINACION - SUPERVISOR DETECTA CONTAMINACION - RECLAMOS O DENUNCIA POR PARTE DE AUTORIDADES O DE LA COMUNIDAD",null,null,null,null,null,null,null,{"$f":"IFERROR(INDEX(L22:M25,MATCH(IF(M22>0,M22,IF(#REF!>0,#REF!,IF(M23>0,M23,IF(M24>0,M24,IF(M25>0,M25,\"\"))))),M22:M25,0),1),\"\")","v":""}]
[null,5.3,"ACCIONES PARA DAR RESPUESTA AL RIESGO",null,"*SUPERVISION CONTROLA LA EJECUCION DEL PLAN DE MANEJO AMBIENTAL  Y DE SER NECESARIO ADECUA EL PLAN A LAS NECESIDADES REALES.                                                                                                            *SUPERVISION CONTROLA EL USO DE LA MAQUINARIAS Y HORARIOS DE TRABAJO.                                                                                         * EJECUTOR A SU COSTO IMPLEMENTA MEDIDAS PARA CONTROLAR LOS IMPACTOS NEGATIVOS PROPIOS DE SUS ACTIVIDADES CONSTRUCTIVAS Y REPARA DAÑOS CAUSADOS AL MEDIO AMBIENTE."]

{"sheet":"011","index":11,"n_rows":28,"n_cols":13,"rows_kept":28,"cut":false,"hidden":false,"merged":[[0,0,0,8],[1,0,1,8],[2,0,3,0],[2,1,3,2],[2,3,2,4],[2,5,2,8],[3,3,3,4],[3,5,3,8],[9,1,11,1],[9,2,11,3],[9,4,9,5],[9,6,9,8],[4,0,5,0],[4,1,5,2],[4,3,4,4],[4,5,4,8],[5,3,5,4],[5,5,5,8],[10,4,10,5],[10,6,10,8],[11,4,11,5],[11,6,11,8],[6,0,11,0],[6,1,6,8],[12,0,22,0],[12,1,12,8],[13,1,18,1],[13,2,13,4],[13,5,18,5],[13,6,13,8],[20,1,22,1],[20,2,20,8],[21,2,22,3],[21,4,22,4],[21,5,22,6],[21,7,22,8],[7,2,7,3],[7,4,7,8],[8,2,8,3],[8,4,8,8],[19,2,19,3],[19,6,19,7],[23,0,27,0],[23,1,23,8],[24,1,25,1],[24,2,25,3],[24,4,24,5],[25,4,25,5],[26,2,26,3],[26,4,26,8],[27,2,27,3],[27,4,27,8]]}
["Anexo N° 01",null,null,null,null,null,null,null,null,"Regresar"]
["Formato para identificar, analizar y dar respuesta a riesgos"]
[1,"NÚMERO Y FECHA DEL DOCUMENTO",null,"Número",null,11]
[null,null,null,"Fecha",null,{"$f":"'001'!F4:I4","v":"ABRIL DEL 2022"}]
[2,"DATOS GENERALES DEL PROYECTO",null,"Nombre del Proyecto",null,{"$f":"'001'!F5:I5","v":"‘‘MEJORAMIENTO DE LAS VÍAS DE CIRCULACIÓN INTERNA, SEÑALIZACIÓN Y ORNATO EN LA SEDE CENTRAL DE LA UNIVERSIDAD NACIONAL DE EDUCACIÓN ENRIQUE GUZMÁN Y VALLE’’ – SALDO DE OBRA – 1ERA ETAPA"}]
[null,null,null,"Ubicación Geográfica",null,{"$f":"'001'!F6:I6","v":"DISTRITO CHOSICA, PROVINCIA LURIGANCHO, DEPARTAMENTO LIMA"}]
[3,"IDENTIFICACIÓN DE RIESGOS"]
[null,3.1,"CÓDIGO DE RIESGO",null,{"$f":"+'F-3. ASIGNACION RIESGOS '!A19","v":"VIAS-UNE-011"}]
[null,3.2,"DESCRIPCIÓN DEL RIESGO",null,{"$f":"+'F-3. ASIGNACION RIESGOS '!B19","v":"CONCRETO NO CUMPLE CON RESISTENCIA A LA COMPRESION ESPECIFICADA"}]
[null,3.3,"CAUSA(S) GENERADORA(S)",null,"Causa N° 1",null,"MALA CALIDAD DE AGREGADOS"]
[null,null,null,null,"Causa N° 2",null,"CONDICIONES CLIMATICAS AFECTAN MEZCLA"]
[null,null,null,null,"Causa N° 3",null,"NO SE CUMPLE CON EL DISEÑO DE MEZCLA "]
[4,"ANÁLISIS CUALITATIVO DE RIESGOS"]
[null,4.0999999999999996,"PROBABILIDAD DE OCURRENCIA",null,null,4.2,"IMPACTO EN LA EJECUCIÓN DE LA OBRA"]
[null,null,"Muy baja ",{"$f":"+'[4]F-2. MATRIZ PROB E IMPACTO.'!C11","v":0.1},null,null,"Muy bajo",{"$f":"+'[4]F-2. MATRIZ PROB E IMPACTO.'!D12","v":0.05}]
[null,null,"Baja ",{"$f":"+'[4]F-2. MATRIZ PROB E IMPACTO.'!C10","v":0.3},"X",null,"Bajo",{"$f":"+'[4]F-2. MATRIZ PROB E IMPACTO.'!E12","v":0.1}]
[null,null,"Moderada ",{"$f":"+'[4]F-2. MATRIZ PROB E IMPACTO.'!C9","v":0.5},null,null,"Moderado",{"$f":"+'[4]F-2. MATRIZ PROB E IMPACTO.'!F12","v":0.2}]
[null,null,"Alta ",{"$f":"+'[4]F-2. MATRIZ PROB E IMPACTO.'!C8","v":0.7},null,null,"Alto",{"$f":"+'[4]F-2. MATRIZ PROB E IMPACTO.'!G12","v":0.4}]
[null,null,"Muy alta ",{"$f":"+'[4]F-2. MATRIZ PROB E IMPACTO.'!C7","v":0.9},null,null,"Muy alto ",{"$f":"+'[4]F-2. MATRIZ PROB E IMPACTO.'!H12","v":0.8},"X"]
[null,null,{"$f":"IFERROR(INDEX(C15:E19,MATCH(IF(E15>0,E15,IF(E16>0,E16,IF(E17>0,E17,IF(E18>0,E18,IF(E19>0,E19,\"\"))))),E15:E19,0),1),\"\")","v":"Baja "},null,{"$f":"IFERROR(INDEX(D15:E19,MATCH(IF(E15>0,E15,IF(E16>0,E16,IF(E17>0,E17,IF(E18>0,E18,IF(E19>0,E19,\"\"))))),E15:E19,0),1),\"\")","v":0.3},null,{"$f":"IFERROR(INDEX(G15:I19,MATCH(IF(I15>0,I15,IF(I16>0,I16,IF(I17>0,I17,IF(I18>0,I18,IF(I19>0,I19,\"\"))))),I15:I19,0),1),\"\")","v":"Muy alto "},null,{"$f":"IFERROR(INDEX(H15:I19,MATCH(IF(I15>0,I15,IF(I16>0,I16,IF(I17>0,I17,IF(I18>0,I18,IF(I19>0,I19,\"\"))))),I15:I19,0),1),\"\")","v":0.8}]
[null,4.3,"PRIORIZACIÓN DEL RIESGO"]
[null,null,"Puntuación del Riesgo =Probabilidad x \nImpacto",null,{"$f":"+IFERROR(ROUND(E20*I20,3),0)","v":0.24},"Prioridad\ndel Riesgo ",null,{"$f":"+IF(E22=0,\"\",IF(AND(E22>=MIN('[4]F-2. MATRIZ PROB E IMPACTO.'!F7:H7,'[4]F-2. MATRIZ PROB E IMPACTO.'!G8:H8,'[4]F-2. MATRIZ PROB E IMPACTO.'!G9:H9,'[4]F-2. MATRIZ PROB E IMPACTO.'!H10),E22<=MAX('[4]F-2. MATRIZ PROB E IMPACTO.'!F7:H7,'[4]F-2. MATRIZ PROB E IMPACTO.'!G8:H8,'[4]F-2. MATRIZ PROB E IMPACTO.'!G9:H9,'[4]F-2. MATRIZ PROB E IMPACTO.'!H10)),\"Alta Prioridad\",IF(AND(E22>=MIN('[4]F-2. MATRIZ PROB E IMPACTO.'!E7:E8,'[4]F-2. MATRIZ PROB E IMPACTO.'!F8:F10,'[4]F-2. MATRIZ PROB E IMPACTO.'!G10,'[4]F-2. MATRIZ PROB E IMPACTO.'!H11),E22<=MAX('[4]F-2. MATRIZ PROB E IMPACTO.'!E7:E8,'[4]F-2. MATRIZ PROB E IMPACTO.'!F8:F10,'[4]F-2. MATRIZ PROB E IMPACTO.'!G10,'[4]F-2. MATRIZ PROB E IMPACTO.'!H11)),\"Prioridad Moderada\",IF(AND(E22>=MIN('[4]F-2. MATRIZ PROB E IMPACTO.'!D7:D11,'[4]F-2. MATRIZ PROB E IMPACTO.'!E9:E11,'[4]F-2. MATRIZ PROB E IMPACTO.'!F11,'[4]F-2. MATRIZ PROB E IMPACTO.'!G11),E22<=MAX('[4]F-2. MATRIZ PROB E IMPACTO.'!D7:D11,'[4]F-2. MATRIZ PROB E IMPACTO.'!E9:E11,'[4]F-2. MATRIZ PROB E IMPACTO.'!F11,'[4]F-2. MATRIZ PROB E IMPACTO.'!G11,)),\"Baja Prioridad\",\"\"))))","v":"Alta Prioridad"},null,null,null,{"$f":"+E25","v":"Mitigar Riesgo"},{"$f":"+G25","v":0}]
[null,null,null,null,null,null,null,null,null,null,null,{"$f":"+E26","v":"Aceptar Riesgo"},{"$f":"+G26","v":0}]
[5,"RESPUESTA A LOS RIESGOS",null,null,null,null,null,null,null,null,null,{"$f":"+H25","v":"Evitar Riesgo"},{"$f":"+I25","v":0}]
[null,5.0999999999999996,"ESTRATEGIA",null,"Mitigar Riesgo",null,null,"Evitar Riesgo",null,null,null,{"$f":"+H26","v":"Transferir Riesgo"},{"$f":"+I26","v":"X"}]
[null,null,null,null,"Aceptar Riesgo",null,null,"Transferir Riesgo","X"]
[null,5.2,"DISPARADOR DE RIESGO",null,"SUPERVISION VERIFICA QUE MUESTRAS ENSAYADAS NO ALCANZAN LA RESISTENCIA ESPECIFICADA.",null,null,null,null,null,null,null,{"$f":"IFERROR(INDEX(L22:M26,MATCH(IF(M22>0,M22,IF(M23>0,M23,IF(M24>0,M24,IF(M25>0,M25,IF(M26>0,M26,\"\"))))),M22:M26,0),1),\"\")","v":"Transferir Riesgo"}]
[null,5.3,"ACCIONES PARA DAR RESPUESTA AL RIESGO",null,"*  SUPERVISION   APRUEBA DISEÑO DE MEZCLA DEL EJECUTOR                                                                                                                                                                                                                                                                                                                                                                                                                                                                                                                                        * SUPERVISION DA PASE A VACIADOS DE CONCRETO VIA CUADERNO DE OBRA.                                                                                                                                                                                                                                                                                            * SUPERVISION EXIGE PRESENCIA  DE RESISENTE DE OBRA.                                                                                                                       * CONTROL DE MANO DE OBRA CALIFICADA                                                                                            * SUPERVISION CONTROLA PERIODO  Y ADECUADO ALMACENAMIENTO DE CEMENTO Y AGREGADOS.                                                                                     *EL EJECUTOR A SU COSTO REPARA O DEMUELE ELEMENTOS ESTRUCTURALES OBSERVADOS POR LA SUPERVISION.        "]

{"sheet":"012","index":12,"n_rows":28,"n_cols":13,"rows_kept":28,"cut":false,"hidden":false,"merged":[[0,0,0,8],[1,0,1,8],[2,0,3,0],[2,1,3,2],[2,3,2,4],[2,5,2,8],[3,3,3,4],[3,5,3,8],[9,1,11,1],[9,2,11,3],[9,4,9,5],[9,6,9,8],[4,0,5,0],[4,1,5,2],[4,3,4,4],[4,5,4,8],[5,3,5,4],[5,5,5,8],[10,4,10,5],[10,6,10,8],[11,4,11,5],[11,6,11,8],[6,0,11,0],[6,1,6,8],[12,0,22,0],[12,1,12,8],[13,1,18,1],[13,2,13,4],[13,5,18,5],[13,6,13,8],[20,1,22,1],[20,2,20,8],[21,2,22,3],[21,4,22,4],[21,5,22,6],[21,7,22,8],[7,2,7,3],[7,4,7,8],[8,2,8,3],[8,4,8,8],[19,2,19,3],[19,6,19,7],[23,0,27,0],[23,1,23,8],[24,1,25,1],[24,2,25,3],[24,4,24,5],[25,4,25,5],[26,2,26,3],[26,4,26,8],[27,2,27,3],[27,4,27,8]]}
["Anexo N° 01",null,null,null,null,null,null,null,null,"Regresar"]
["Formato para identificar, analizar y dar respuesta a riesgos"]
[1,"NÚMERO Y FECHA DEL DOCUMENTO",null,"Número",null,12]
[null,null,null,"Fecha",null,{"$f":"'001'!F4:I4","v":"ABRIL DEL 2022"}]
[2,"DATOS GENERALES DEL PROYECTO",null,"Nombre del Proyecto",null,{"$f":"'001'!F5:I5","v":"‘‘MEJORAMIENTO DE LAS VÍAS DE CIRCULACIÓN INTERNA, SEÑALIZACIÓN Y ORNATO EN LA SEDE CENTRAL DE LA UNIVERSIDAD NACIONAL DE EDUCACIÓN ENRIQUE GUZMÁN Y VALLE’’ – SALDO DE OBRA – 1ERA ETAPA"}]
[null,null,null,"Ubicación Geográfica",null,{"$f":"'001'!F6:I6","v":"DISTRITO CHOSICA, PROVINCIA LURIGANCHO, DEPARTAMENTO LIMA"}]
[3,"IDENTIFICACIÓN DE RIESGOS"]
[null,3.1,"CÓDIGO DE RIESGO",null,{"$f":"+'F-3. ASIGNACION RIESGOS '!A20","v":"VIAS-UNE-012"}]
[null,3.2,"DESCRIPCIÓN DEL RIESGO",null,{"$f":"+'F-3. ASIGNACION RIESGOS '!B20","v":"DELINCUENCIA Y/O VANDALISMO"}]
[null,3.3,"CAUSA(S) GENERADORA(S)",null,"Causa N° 1",null,"FALTA DE PRESENCIA POLICIAL EN LA ZONA"]
[null,null,null,null,"Causa N° 2",null,"FALTA DE CULTURA, EDUCACION Y PROMOCION DE SEGURIDAD Y VALORES EN LA ZONA"]
[null,null,null,null,"Causa N° 3"]
[4,"ANÁLISIS CUALITATIVO DE RIESGOS"]
[null,4.0999999999999996,"PROBABILIDAD DE OCURRENCIA",null,null,4.2,"IMPACTO EN LA EJECUCIÓN DE LA OBRA"]
[null,null,"Muy baja ",{"$f":"+'[4]F-2. MATRIZ PROB E IMPACTO.'!C11","v":0.1},null,null,"Muy bajo",{"$f":"+'[4]F-2. MATRIZ PROB E IMPACTO.'!D12","v":0.05}]
[null,null,"Baja ",{"$f":"+'[4]F-2. MATRIZ PROB E IMPACTO.'!C10","v":0.3},"X",null,"Bajo",{"$f":"+'[4]F-2. MATRIZ PROB E IMPACTO.'!E12","v":0.1},"X"]
[null,null,"Moderada ",{"$f":"+'[4]F-2. MATRIZ PROB E IMPACTO.'!C9","v":0.5},null,null,"Moderado",{"$f":"+'[4]F-2. MATRIZ PROB E IMPACTO.'!F12","v":0.2}]
[null,null,"Alta ",{"$f":"+'[4]F-2. MATRIZ PROB E IMPACTO.'!C8","v":0.7},null,null,"Alto",{"$f":"+'[4]F-2. MATRIZ PROB E IMPACTO.'!G12","v":0.4}]
[null,null,"Muy alta ",{"$f":"+'[4]F-2. MATRIZ PROB E IMPACTO.'!C7","v":0.9},null,null,"Muy alto ",{"$f":"+'[4]F-2. MATRIZ PROB E IMPACTO.'!H12","v":0.8}]
[null,null,{"$f":"IFERROR(INDEX(C15:E19,MATCH(IF(E15>0,E15,IF(E16>0,E16,IF(E17>0,E17,IF(E18>0,E18,IF(E19>0,E19,\"\"))))),E15:E19,0),1),\"\")","v":"Baja "},null,{"$f":"IFERROR(INDEX(D15:E19,MATCH(IF(E15>0,E15,IF(E16>0,E16,IF(E17>0,E17,IF(E18>0,E18,IF(E19>0,E19,\"\"))))),E15:E19,0),1),\"\")","v":0.3},null,{"$f":"IFERROR(INDEX(G15:I19,MATCH(IF(I15>0,I15,IF(I16>0,I16,IF(I17>0,I17,IF(I18>0,I18,IF(I19>0,I19,\"\"))))),I15:I19,0),1),\"\")","v":"Bajo"},null,{"$f":"IFERROR(INDEX(H15:I19,MATCH(IF(I15>0,I15,IF(I16>0,I16,IF(I17>0,I17,IF(I18>0,I18,IF(I19>0,I19,\"\"))))),I15:I19,0),1),\"\")","v":0.1}]
[null,4.3,"PRIORIZACIÓN DEL RIESGO"]
[null,null,"Puntuación del Riesgo =Probabilidad x \nImpacto",null,{"$f":"+IFERROR(ROUND(E20*I20,3),0)","v":0.03},"Prioridad\ndel Riesgo ",null,{"$f":"+IF(E22=0,\"\",IF(AND(E22>=MIN('[4]F-2. MATRIZ PROB E IMPACTO.'!F7:H7,'[4]F-2. MATRIZ PROB E IMPACTO.'!G8:H8,'[4]F-2. MATRIZ PROB E IMPACTO.'!G9:H9,'[4]F-2. MATRIZ PROB E IMPACTO.'!H10),E22<=MAX('[4]F-2. MATRIZ PROB E IMPACTO.'!F7:H7,'[4]F-2. MATRIZ PROB E IMPACTO.'!G8:H8,'[4]F-2. MATRIZ PROB E IMPACTO.'!G9:H9,'[4]F-2. MATRIZ PROB E IMPACTO.'!H10)),\"Alta Prioridad\",IF(AND(E22>=MIN('[4]F-2. MATRIZ PROB E IMPACTO.'!E7:E8,'[4]F-2. MATRIZ PROB E IMPACTO.'!F8:F10,'[4]F-2. MATRIZ PROB E IMPACTO.'!G10,'[4]F-2. MATRIZ PROB E IMPACTO.'!H11),E22<=MAX('[4]F-2. MATRIZ PROB E IMPACTO.'!E7:E8,'[4]F-2. MATRIZ PROB E IMPACTO.'!F8:F10,'[4]F-2. MATRIZ PROB E IMPACTO.'!G10,'[4]F-2. MATRIZ PROB E IMPACTO.'!H11)),\"Prioridad Moderada\",IF(AND(E22>=MIN('[4]F-2. MATRIZ PROB E IMPACTO.'!D7:D11,'[4]F-2. MATRIZ PROB E IMPACTO.'!E9:E11,'[4]F-2. MATRIZ PROB E IMPACTO.'!F11,'[4]F-2. MATRIZ PROB E IMPACTO.'!G11),E22<=MAX('[4]F-2. MATRIZ PROB E IMPACTO.'!D7:D11,'[4]F-2. MATRIZ PROB E IMPACTO.'!E9:E11,'[4]F-2. MATRIZ PROB E IMPACTO.'!F11,'[4]F-2. MATRIZ PROB E IMPACTO.'!G11,)),\"Baja Prioridad\",\"\"))))","v":"Baja Prioridad"},null,null,null,{"$f":"+E25","v":"Mitigar Riesgo"},{"$f":"+G25","v":0}]
[null,null,null,null,null,null,null,null,null,null,null,{"$f":"+E26","v":"Aceptar Riesgo"},{"$f":"+G26","v":0}]
[5,"RESPUESTA A LOS RIESGOS",null,null,null,null,null,null,null,null,null,{"$f":"+H25","v":"Evitar Riesgo"},{"$f":"+I25","v":0}]
[null,5.0999999999999996,"ESTRATEGIA",null,"Mitigar Riesgo",null,null,"Evitar Riesgo",null,null,null,{"$f":"+H26","v":"Transferir Riesgo"},{"$f":"+I26","v":"X"}]
[null,null,null,null,"Aceptar Riesgo",null,null,"Transferir Riesgo","X"]
[null,5.2,"DISPARADOR DE RIESGO",null,"INCREMENTO DE INDICE DE DELINCUENCIA EN LA ZONA",null,null,null,null,null,null,null,{"$f":"IFERROR(INDEX(L22:M26,MATCH(IF(M22>0,M22,IF(M23>0,M23,IF(M24>0,M24,IF(M25>0,M25,IF(M26>0,M26,\"\"))))),M22:M26,0),1),\"\")","v":"Transferir Riesgo"}]
[null,5.3,"ACCIONES PARA DAR RESPUESTA AL RIESGO",null,"* EJECUTOR CONTRATAR SERVICIOS DE SEGURIDAD Y VIGILANCIA INTERNA Y EXTERNA DE LA OBRA.                                                                                   * EJECUTOR COORDINA CONSTANTEMENTE CON LA POLICIA NACIONAL PARA INCREMENTAR VIGILANCIA.                                                                                                                                                                                                  "]

{"sheet":"013","index":13,"n_rows":28,"n_cols":13,"rows_kept":28,"cut":false,"hidden":false,"merged":[[0,0,0,8],[1,0,1,8],[2,0,3,0],[2,1,3,2],[2,3,2,4],[2,5,2,8],[3,3,3,4],[3,5,3,8],[9,1,11,1],[9,2,11,3],[9,4,9,5],[9,6,9,8],[4,0,5,0],[4,1,5,2],[4,3,4,4],[4,5,4,8],[5,3,5,4],[5,5,5,8],[10,4,10,5],[10,6,10,8],[11,4,11,5],[11,6,11,8],[6,0,11,0],[6,1,6,8],[12,0,22,0],[12,1,12,8],[13,1,18,1],[13,2,13,4],[13,5,18,5],[13,6,13,8],[20,1,22,1],[20,2,20,8],[21,2,22,3],[21,4,22,4],[21,5,22,6],[21,7,22,8],[7,2,7,3],[7,4,7,8],[8,2,8,3],[8,4,8,8],[19,2,19,3],[19,6,19,7],[23,0,27,0],[23,1,23,8],[24,1,25,1],[24,2,25,3],[24,4,24,5],[25,4,25,5],[26,2,26,3],[26,4,26,8],[27,2,27,3],[27,4,27,8]]}
["Anexo N° 01",null,null,null,null,null,null,null,null,"Regresar"]
["Formato para identificar, analizar y dar respuesta a riesgos"]
[1,"NÚMERO Y FECHA DEL DOCUMENTO",null,"Número",null,13]
[null,null,null,"Fecha",null,{"$f":"'001'!F4:I4","v":"ABRIL DEL 2022"}]
[2,"DATOS GENERALES DEL PROYECTO",null,"Nombre del Proyecto",null,{"$f":"'001'!F5:I5","v":"‘‘MEJORAMIENTO DE LAS VÍAS DE CIRCULACIÓN INTERNA, SEÑALIZACIÓN Y ORNATO EN LA SEDE CENTRAL DE LA UNIVERSIDAD NACIONAL DE EDUCACIÓN ENRIQUE GUZMÁN Y VALLE’’ – SALDO DE OBRA – 1ERA ETAPA"}]
[null,null,null,"Ubicación Geográfica",null,{"$f":"'001'!F6:I6","v":"DISTRITO CHOSICA, PROVINCIA LURIGANCHO, DEPARTAMENTO LIMA"}]
[3,"IDENTIFICACIÓN DE RIESGOS"]
[null,3.1,"CÓDIGO DE RIESGO",null,{"$f":"+'F-3. ASIGNACION RIESGOS '!A21","v":"VIAS-UNE-013"}]
[null,3.2,"DESCRIPCIÓN DEL RIESGO",null,{"$f":"+'F-3. ASIGNACION RIESGOS '!B21","v":"USO DE DEPOSITOS DE MATERIAL EXCEDENTES (DME) NO AUTORIZADOS O PROPIEDAD DE TERCEROS "}]
[null,3.3,"CAUSA(S) GENERADORA(S)",null,"Causa N° 1",null,"NO SE RESPETA LIMITES DE  DME PROYECTADO."]
[null,null,null,null,"Causa N° 2",null,"DIMENSIONES DE DME PROYECTADO ES INSUFICIENTE"]
[null,null,null,null,"Causa N° 3"]
[4,"ANÁLISIS CUALITATIVO DE RIESGOS"]
[null,4.0999999999999996,"PROBABILIDAD DE OCURRENCIA",null,null,4.2,"IMPACTO EN LA EJECUCIÓN DE LA OBRA"]
[null,null,"Muy baja ",{"$f":"+'[4]F-2. MATRIZ PROB E IMPACTO.'!C11","v":0.1},null,null,"Muy bajo",{"$f":"+'[4]F-2. MATRIZ PROB E IMPACTO.'!D12","v":0.05}]
[null,null,"Baja ",{"$f":"+'[4]F-2. MATRIZ PROB E IMPACTO.'!C10","v":0.3},null,null,"Bajo",{"$f":"+'[4]F-2. MATRIZ PROB E IMPACTO.'!E12","v":0.1}]
[null,null,"Moderada ",{"$f":"+'[4]F-2. MATRIZ PROB E IMPACTO.'!C9","v":0.5},"X",null,"Moderado",{"$f":"+'[4]F-2. MATRIZ PROB E IMPACTO.'!F12","v":0.2},"X"]
[null,null,"Alta ",{"$f":"+'[4]F-2. MATRIZ PROB E IMPACTO.'!C8","v":0.7},null,null,"Alto",{"$f":"+'[4]F-2. MATRIZ PROB E IMPACTO.'!G12","v":0.4}]
[null,null,"Muy alta ",{"$f":"+'[4]F-2. MATRIZ PROB E IMPACTO.'!C7","v":0.9},null,null,"Muy alto ",{"$f":"+'[4]F-2. MATRIZ PROB E IMPACTO.'!H12","v":0.8}]
[null,null,{"$f":"IFERROR(INDEX(C15:E19,MATCH(IF(E15>0,E15,IF(E16>0,E16,IF(E17>0,E17,IF(E18>0,E18,IF(E19>0,E19,\"\"))))),E15:E19,0),1),\"\")","v":"Moderada "},null,{"$f":"IFERROR(INDEX(D15:E19,MATCH(IF(E15>0,E15,IF(E16>0,E16,IF(E17>0,E17,IF(E18>0,E18,IF(E19>0,E19,\"\"))))),E15:E19,0),1),\"\")","v":0.5},null,{"$f":"IFERROR(INDEX(G15:I19,MATCH(IF(I15>0,I15,IF(I16>0,I16,IF(I17>0,I17,IF(I18>0,I18,IF(I19>0,I19,\"\"))))),I15:I19,0),1),\"\")","v":"Moderado"},null,{"$f":"IFERROR(INDEX(H15:I19,MATCH(IF(I15>0,I15,IF(I16>0,I16,IF(I17>0,I17,IF(I18>0,I18,IF(I19>0,I19,\"\"))))),I15:I19,0),1),\"\")","v":0.2}]
[null,4.3,"PRIORIZACIÓN DEL RIESGO"]
[null,null,"Puntuación del Riesgo =Probabilidad x \nImpacto",null,{"$f":"+IFERROR(ROUND(E20*I20,3),0)","v":0.1},"Prioridad\ndel Riesgo ",null,{"$f":"+IF(E22=0,\"\",IF(AND(E22>=MIN('[4]F-2. MATRIZ PROB E IMPACTO.'!F7:H7,'[4]F-2. MATRIZ PROB E IMPACTO.'!G8:H8,'[4]F-2. MATRIZ PROB E IMPACTO.'!G9:H9,'[4]F-2. MATRIZ PROB E IMPACTO.'!H10),E22<=MAX('[4]F-2. MATRIZ PROB E IMPACTO.'!F7:H7,'[4]F-2. MATRIZ PROB E IMPACTO.'!G8:H8,'[4]F-2. MATRIZ PROB E IMPACTO.'!G9:H9,'[4]F-2. MATRIZ PROB E IMPACTO.'!H10)),\"Alta Prioridad\",IF(AND(E22>=MIN('[4]F-2. MATRIZ PROB E IMPACTO.'!E7:E8,'[4]F-2. MATRIZ PROB E IMPACTO.'!F8:F10,'[4]F-2. MATRIZ PROB E IMPACTO.'!G10,'[4]F-2. MATRIZ PROB E IMPACTO.'!H11),E22<=MAX('[4]F-2. MATRIZ PROB E IMPACTO.'!E7:E8,'[4]F-2. MATRIZ PROB E IMPACTO.'!F8:F10,'[4]F-2. MATRIZ PROB E IMPACTO.'!G10,'[4]F-2. MATRIZ PROB E IMPACTO.'!H11)),\"Prioridad Moderada\",IF(AND(E22>=MIN('[4]F-2. MATRIZ PROB E IMPACTO.'!D7:D11,'[4]F-2. MATRIZ PROB E IMPACTO.'!E9:E11,'[4]F-2. MATRIZ PROB E IMPACTO.'!F11,'[4]F-2. MATRIZ PROB E IMPACTO.'!G11),E22<=MAX('[4]F-2. MATRIZ PROB E IMPACTO.'!D7:D11,'[4]F-2. MATRIZ PROB E IMPACTO.'!E9:E11,'[4]F-2. MATRIZ PROB E IMPACTO.'!F11,'[4]F-2. MATRIZ PROB E IMPACTO.'!G11,)),\"Baja Prioridad\",\"\"))))","v":"Prioridad Moderada"},null,null,null,{"$f":"+E25","v":"Mitigar Riesgo"},{"$f":"+G25","v":"X"}]
[null,null,null,null,null,null,null,null,null,null,null,{"$f":"+E26","v":"Aceptar Riesgo"},{"$f":"+G26","v":0}]
[5,"RESPUESTA A LOS RIESGOS",null,null,null,null,null,null,null,null,null,{"$f":"+H25","v":"Evitar Riesgo"},{"$f":"+I25","v":0}]
[null,5.0999999999999996,"ESTRATEGIA",null,"Mitigar Riesgo",null,"X","Evitar Riesgo",null,null,null,{"$f":"+H26","v":"Transferir Riesgo"},{"$f":"+I26","v":0}]
[null,null,null,null,"Aceptar Riesgo",null,null,"Transferir Riesgo"]
[null,5.2,"DISPARADOR DE RIESGO",null,"DME PROXIMOS A SU CAPACIDAD MAXIMA O A LIMITES PERIMETRICOS.",null,null,null,null,null,null,null,{"$f":"IFERROR(INDEX(L22:M26,MATCH(IF(M22>0,M22,IF(M23>0,M23,IF(M24>0,M24,IF(M25>0,M25,IF(M26>0,M26,\"\"))))),M22:M26,0),1),\"\")","v":"Mitigar Riesgo"}]
[null,5.3,"ACCIONES PARA DAR RESPUESTA AL RIESGO",null,"*USO DE DME ALTERNATIVOS PROYECTADOS                                                                                           *SUPERVISION PROPONE DME ALTERNATIVOS CERCANOS AL PROYECTO"]

{"sheet":"014","index":14,"n_rows":28,"n_cols":13,"rows_kept":28,"cut":false,"hidden":false,"merged":[[0,0,0,8],[1,0,1,8],[2,0,3,0],[2,1,3,2],[2,3,2,4],[2,5,2,8],[3,3,3,4],[3,5,3,8],[9,1,11,1],[9,2,11,3],[9,4,9,5],[9,6,9,8],[4,0,5,0],[4,1,5,2],[4,3,4,4],[4,5,4,8],[5,3,5,4],[5,5,5,8],[10,4,10,5],[10,6,10,8],[11,4,11,5],[11,6,11,8],[6,0,11,0],[6,1,6,8],[12,0,22,0],[12,1,12,8],[13,1,18,1],[13,2,13,4],[13,5,18,5],[13,6,13,8],[20,1,22,1],[20,2,20,8],[21,2,22,3],[21,4,22,4],[21,5,22,6],[21,7,22,8],[7,2,7,3],[7,4,7,8],[8,2,8,3],[8,4,8,8],[19,2,19,3],[19,6,19,7],[23,0,27,0],[23,1,23,8],[24,1,25,1],[24,2,25,3],[24,4,24,5],[25,4,25,5],[26,2,26,3],[26,4,26,8],[27,2,27,3],[27,4,27,8]]}
["Anexo N° 01",null,null,null,null,null,null,null,null,"Regresar"]
["Formato para identificar, analizar y dar respuesta a riesgos"]
[1,"NÚMERO Y FECHA DEL DOCUMENTO",null,"Número",null,14]
[null,null,null,"Fecha",null,{"$f":"'001'!F4:I4","v":"ABRIL DEL 2022"}]
[2,"DATOS GENERALES DEL PROYECTO",null,"Nombre del Proyecto",null,{"$f":"'001'!F5:I5","v":"‘‘MEJORAMIENTO DE LAS VÍAS DE CIRCULACIÓN INTERNA, SEÑALIZACIÓN Y ORNATO EN LA SEDE CENTRAL DE LA UNIVERSIDAD NACIONAL DE EDUCACIÓN ENRIQUE GUZMÁN Y VALLE’’ – SALDO DE OBRA – 1ERA ETAPA"}]
[null,null,null,"Ubicación Geográfica",null,{"$f":"'001'!F6:I6","v":"DISTRITO CHOSICA, PROVINCIA LURIGANCHO, DEPARTAMENTO LIMA"}]
[3,"IDENTIFICACIÓN DE RIESGOS"]
[null,3.1,"CÓDIGO DE RIESGO",null,{"$f":"+'F-3. ASIGNACION RIESGOS '!A22","v":"VIAS-UNE-014"}]
[null,3.2,"DESCRIPCIÓN DEL RIESGO",null,{"$f":"+'F-3. ASIGNACION RIESGOS '!B22","v":"CAMBIOS EN LA NORMATIVA QUE RESULTE DE APLICACIÓN EN LA EJECUCION DE LA OBRA"}]
[null,3.3,"CAUSA(S) GENERADORA(S)",null,"Causa N° 1",null,"AMBIGÜEDAD U OBSOLECENCIA DE NORMATIVA VIGENTE"]
[null,null,null,null,"Causa N° 2",null,"AFILIACION A ORGA NISMOS INTERNACIONALES QUE EXIJAN ESTANDARES A NIVEL GLOBAL"]
[null,null,null,null,"Causa N° 3"]
[4,"ANÁLISIS CUALITATIVO DE RIESGOS"]
[null,4.0999999999999996,"PROBABILIDAD DE OCURRENCIA",null,null,4.2,"IMPACTO EN LA EJECUCIÓN DE LA OBRA"]
[null,null,"Muy baja ",{"$f":"+'[4]F-2. MATRIZ PROB E IMPACTO.'!C11","v":0.1},"X",null,"Muy bajo",{"$f":"+'[4]F-2. MATRIZ PROB E IMPACTO.'!D12","v":0.05}]
[null,null,"Baja ",{"$f":"+'[4]F-2. MATRIZ PROB E IMPACTO.'!C10","v":0.3},null,null,"Bajo",{"$f":"+'[4]F-2. MATRIZ PROB E IMPACTO.'!E12","v":0.1}]
[null,null,"Moderada ",{"$f":"+'[4]F-2. MATRIZ PROB E IMPACTO.'!C9","v":0.5},null,null,"Moderado",{"$f":"+'[4]F-2. MATRIZ PROB E IMPACTO.'!F12","v":0.2}]
[null,null,"Alta ",{"$f":"+'[4]F-2. MATRIZ PROB E IMPACTO.'!C8","v":0.7},null,null,"Alto",{"$f":"+'[4]F-2. MATRIZ PROB E IMPACTO.'!G12","v":0.4},"X"]
[null,null,"Muy alta ",{"$f":"+'[4]F-2. MATRIZ PROB E IMPACTO.'!C7","v":0.9},null,null,"Muy alto ",{"$f":"+'[4]F-2. MATRIZ PROB E IMPACTO.'!H12","v":0.8}]
[null,null,{"$f":"IFERROR(INDEX(C15:E19,MATCH(IF(E15>0,E15,IF(E16>0,E16,IF(E17>0,E17,IF(E18>0,E18,IF(E19>0,E19,\"\"))))),E15:E19,0),1),\"\")","v":"Muy baja "},null,{"$f":"IFERROR(INDEX(D15:E19,MATCH(IF(E15>0,E15,IF(E16>0,E16,IF(E17>0,E17,IF(E18>0,E18,IF(E19>0,E19,\"\"))))),E15:E19,0),1),\"\")","v":0.1},null,{"$f":"IFERROR(INDEX(G15:I19,MATCH(IF(I15>0,I15,IF(I16>0,I16,IF(I17>0,I17,IF(I18>0,I18,IF(I19>0,I19,\"\"))))),I15:I19,0),1),\"\")","v":"Alto"},null,{"$f":"IFERROR(INDEX(H15:I19,MATCH(IF(I15>0,I15,IF(I16>0,I16,IF(I17>0,I17,IF(I18>0,I18,IF(I19>0,I19,\"\"))))),I15:I19,0),1),\"\")","v":0.4}]
[null,4.3,"PRIORIZACIÓN DEL RIESGO"]
[null,null,"Puntuación del Riesgo =Probabilidad x \nImpacto",null,{"$f":"+IFERROR(ROUND(E20*I20,3),0)","v":0.04},"Prioridad\ndel Riesgo ",null,{"$f":"+IF(E22=0,\"\",IF(AND(E22>=MIN('[4]F-2. MATRIZ PROB E IMPACTO.'!F7:H7,'[4]F-2. MATRIZ PROB E IMPACTO.'!G8:H8,'[4]F-2. MATRIZ PROB E IMPACTO.'!G9:H9,'[4]F-2. MATRIZ PROB E IMPACTO.'!H10),E22<=MAX('[4]F-2. MATRIZ PROB E IMPACTO.'!F7:H7,'[4]F-2. MATRIZ PROB E IMPACTO.'!G8:H8,'[4]F-2. MATRIZ PROB E IMPACTO.'!G9:H9,'[4]F-2. MATRIZ PROB E IMPACTO.'!H10)),\"Alta Prioridad\",IF(AND(E22>=MIN('[4]F-2. MATRIZ PROB E IMPACTO.'!E7:E8,'[4]F-2. MATRIZ PROB E IMPACTO.'!F8:F10,'[4]F-2. MATRIZ PROB E IMPACTO.'!G10,'[4]F-2. MATRIZ PROB E IMPACTO.'!H11),E22<=MAX('[4]F-2. MATRIZ PROB E IMPACTO.'!E7:E8,'[4]F-2. MATRIZ PROB E IMPACTO.'!F8:F10,'[4]F-2. MATRIZ PROB E IMPACTO.'!G10,'[4]F-2. MATRIZ PROB E IMPACTO.'!H11)),\"Prioridad Moderada\",IF(AND(E22>=MIN('[4]F-2. MATRIZ PROB E IMPACTO.'!D7:D11,'[4]F-2. MATRIZ PROB E IMPACTO.'!E9:E11,'[4]F-2. MATRIZ PROB E IMPACTO.'!F11,'[4]F-2. MATRIZ PROB E IMPACTO.'!G11),E22<=MAX('[4]F-2. MATRIZ PROB E IMPACTO.'!D7:D11,'[4]F-2. MATRIZ PROB E IMPACTO.'!E9:E11,'[4]F-2. MATRIZ PROB E IMPACTO.'!F11,'[4]F-2. MATRIZ PROB E IMPACTO.'!G11,)),\"Baja Prioridad\",\"\"))))","v":"Baja Prioridad"},null,null,null,{"$f":"+E25","v":"Mitigar Riesgo"},{"$f":"+G25","v":0}]
[null,null,null,null,null,null,null,null,null,null,null,{"$f":"+E26","v":"Aceptar Riesgo"},{"$f":"+G26","v":"X"}]
[5,"RESPUESTA A LOS RIESGOS",null,null,null,null,null,null,null,null,null,{"$f":"+H25","v":"Evitar Riesgo"},{"$f":"+I25","v":0}]
[null,5.0999999999999996,"ESTRATEGIA",null,"Mitigar Riesgo",null,null,"Evitar Riesgo",null,null,null,{"$f":"+H26","v":"Transferir Riesgo"},{"$f":"+I26","v":0}]
[null,null,null,null,"Aceptar Riesgo",null,"X","Transferir Riesgo"]
[null,5.2,"DISPARADOR DE RIESGO",null,"PUBLICACION OFICIAL Y PUESTA EN VIGENCIA DE NUEVA NORMATIVA.",null,null,null,null,null,null,null,{"$f":"IFERROR(INDEX(L22:M26,MATCH(IF(M22>0,M22,IF(M23>0,M23,IF(M24>0,M24,IF(M25>0,M25,IF(M26>0,M26,\"\"))))),M22:M26,0),1),\"\")","v":"Aceptar Riesgo"}]
[null,5.3,"ACCIONES PARA DAR RESPUESTA AL RIESGO",null,"* IMPLEMENTAR LAS MODIFICACIONES DE LA NORMATIVA QUE SEA APLICABLE A LA EJECUCION DE LA OBRA.                                               * ANALIZAR LOS CAMBIOS PRESENTADOS EN LA NORMATIVA APLICABLE A FIN DE TRASLADAR LAS RESPONSABILIDADES U OBLIGACIONES AL CONTRATISTA, ASI COMO TAMBIEN, DE PRESENTARSE VARIACIONES EN LOS COSTOS, IMPLEMENTAR MEDIDAS COMPENSATORIAS EN EL MARCO DE LA LEY DE CONTRTACIONES DEL ESTADO.                                                                                          "]

{"sheet":"015","index":15,"n_rows":28,"n_cols":13,"rows_kept":28,"cut":false,"hidden":false,"merged":[[23,0,27,0],[23,1,23,8],[24,1,25,1],[24,2,25,3],[24,4,24,5],[25,4,25,5],[26,2,26,3],[26,4,26,8],[27,2,27,3],[27,4,27,8],[7,2,7,3],[7,4,7,8],[8,2,8,3],[8,4,8,8],[19,2,19,3],[19,6,19,7],[12,0,22,0],[12,1,12,8],[13,1,18,1],[13,2,13,4],[13,5,18,5],[13,6,13,8],[20,1,22,1],[20,2,20,8],[21,2,22,3],[21,4,22,4],[21,5,22,6],[21,7,22,8],[9,1,11,1],[9,2,11,3],[9,4,9,5],[9,6,9,8],[4,0,5,0],[4,1,5,2],[4,3,4,4],[4,5,4,8],[5,3,5,4],[5,5,5,8],[10,4,10,5],[10,6,10,8],[11,4,11,5],[11,6,11,8],[6,0,11,0],[6,1,6,8],[0,0,0,8],[1,0,1,8],[2,0,3,0],[2,1,3,2],[2,3,2,4],[2,5,2,8],[3,3,3,4],[3,5,3,8]]}
["Anexo N° 01",null,null,null,null,null,null,null,null,"Regresar"]
["Formato para identificar, analizar y dar respuesta a riesgos"]
[1,"NÚMERO Y FECHA DEL DOCUMENTO",null,"Número",null,15]
[null,null,null,"Fecha",null,{"$f":"'001'!F4:I4","v":"ABRIL DEL 2022"}]
[2,"DATOS GENERALES DEL PROYECTO",null,"Nombre del Proyecto",null,{"$f":"'001'!F5:I5","v":"‘‘MEJORAMIENTO DE LAS VÍAS DE CIRCULACIÓN INTERNA, SEÑALIZACIÓN Y ORNATO EN LA SEDE CENTRAL DE LA UNIVERSIDAD NACIONAL DE EDUCACIÓN ENRIQUE GUZMÁN Y VALLE’’ – SALDO DE OBRA – 1ERA ETAPA"}]
[null,null,null,"Ubicación Geográfica",null,{"$f":"'001'!F6:I6","v":"DISTRITO CHOSICA, PROVINCIA LURIGANCHO, DEPARTAMENTO LIMA"}]
[3,"IDENTIFICACIÓN DE RIESGOS"]
[null,3.1,"CÓDIGO DE RIESGO",null,{"$f":"+'F-3. ASIGNACION RIESGOS '!A23","v":"VIAS-UNE-015"}]
[null,3.2,"DESCRIPCIÓN DEL RIESGO",null,{"$f":"+'F-3. ASIGNACION RIESGOS '!B23","v":"DEBIDO A LAS OCURRENCIAS DE DESASTRES NATURALES PODRIA OCURRIR DAÑOS IRREPARABLES EN LA OBRA A EJECUTAR, LO QUE CONLLEVARIA A AFECTAR EL COSTO DEL PROYECTO Y PERDIDAS DE MATERIALES DE CONSTRUCCION Y BIENES"}]
[null,3.3,"CAUSA(S) GENERADORA(S)",null,"Causa N° 1",null,"LLUVIAS"]
[null,null,null,null,"Causa N° 2",null,"INUNDACIONES"]
[null,null,null,null,"Causa N° 3",null,"DESLIZAMIENTOS"]
[4,"ANÁLISIS CUALITATIVO DE RIESGOS"]
[null,4.0999999999999996,"PROBABILIDAD DE OCURRENCIA",null,null,4.2,"IMPACTO EN LA EJECUCIÓN DE LA OBRA"]
[null,null,"Muy baja ",{"$f":"+'[4]F-2. MATRIZ PROB E IMPACTO.'!C11","v":0.1},null,null,"Muy bajo",{"$f":"+'[4]F-2. MATRIZ PROB E IMPACTO.'!D12","v":0.05}]
[null,null,"Baja ",{"$f":"+'[4]F-2. MATRIZ PROB E IMPACTO.'!C10","v":0.3},"X",null,"Bajo",{"$f":"+'[4]F-2. MATRIZ PROB E IMPACTO.'!E12","v":0.1}]
[null,null,"Moderada ",{"$f":"+'[4]F-2. MATRIZ PROB E IMPACTO.'!C9","v":0.5},null,null,"Moderado",{"$f":"+'[4]F-2. MATRIZ PROB E IMPACTO.'!F12","v":0.2}]
[null,null,"Alta ",{"$f":"+'[4]F-2. MATRIZ PROB E IMPACTO.'!C8","v":0.7},null,null,"Alto",{"$f":"+'[4]F-2. MATRIZ PROB E IMPACTO.'!G12","v":0.4}]
[null,null,"Muy alta ",{"$f":"+'[4]F-2. MATRIZ PROB E IMPACTO.'!C7","v":0.9},null,null,"Muy alto ",{"$f":"+'[4]F-2. MATRIZ PROB E IMPACTO.'!H12","v":0.8},"X"]
[null,null,{"$f":"IFERROR(INDEX(C15:E19,MATCH(IF(E15>0,E15,IF(E16>0,E16,IF(E17>0,E17,IF(E18>0,E18,IF(E19>0,E19,\"\"))))),E15:E19,0),1),\"\")","v":"Baja "},null,{"$f":"IFERROR(INDEX(D15:E19,MATCH(IF(E15>0,E15,IF(E16>0,E16,IF(E17>0,E17,IF(E18>0,E18,IF(E19>0,E19,\"\"))))),E15:E19,0),1),\"\")","v":0.3},null,{"$f":"IFERROR(INDEX(G15:I19,MATCH(IF(I15>0,I15,IF(I16>0,I16,IF(I17>0,I17,IF(I18>0,I18,IF(I19>0,I19,\"\"))))),I15:I19,0),1),\"\")","v":"Muy alto "},null,{"$f":"IFERROR(INDEX(H15:I19,MATCH(IF(I15>0,I15,IF(I16>0,I16,IF(I17>0,I17,IF(I18>0,I18,IF(I19>0,I19,\"\"))))),I15:I19,0),1),\"\")","v":0.8}]
[null,4.3,"PRIORIZACIÓN DEL RIESGO"]
[null,null,"Puntuación del Riesgo =Probabilidad x \nImpacto",null,{"$f":"+IFERROR(ROUND(E20*I20,3),0)","v":0.24},"Prioridad\ndel Riesgo ",null,{"$f":"+IF(E22=0,\"\",IF(AND(E22>=MIN('[4]F-2. MATRIZ PROB E IMPACTO.'!F7:H7,'[4]F-2. MATRIZ PROB E IMPACTO.'!G8:H8,'[4]F-2. MATRIZ PROB E IMPACTO.'!G9:H9,'[4]F-2. MATRIZ PROB E IMPACTO.'!H10),E22<=MAX('[4]F-2. MATRIZ PROB E IMPACTO.'!F7:H7,'[4]F-2. MATRIZ PROB E IMPACTO.'!G8:H8,'[4]F-2. MATRIZ PROB E IMPACTO.'!G9:H9,'[4]F-2. MATRIZ PROB E IMPACTO.'!H10)),\"Alta Prioridad\",IF(AND(E22>=MIN('[4]F-2. MATRIZ PROB E IMPACTO.'!E7:E8,'[4]F-2. MATRIZ PROB E IMPACTO.'!F8:F10,'[4]F-2. MATRIZ PROB E IMPACTO.'!G10,'[4]F-2. MATRIZ PROB E IMPACTO.'!H11),E22<=MAX('[4]F-2. MATRIZ PROB E IMPACTO.'!E7:E8,'[4]F-2. MATRIZ PROB E IMPACTO.'!F8:F10,'[4]F-2. MATRIZ PROB E IMPACTO.'!G10,'[4]F-2. MATRIZ PROB E IMPACTO.'!H11)),\"Prioridad Moderada\",IF(AND(E22>=MIN('[4]F-2. MATRIZ PROB E IMPACTO.'!D7:D11,'[4]F-2. MATRIZ PROB E IMPACTO.'!E9:E11,'[4]F-2. MATRIZ PROB E IMPACTO.'!F11,'[4]F-2. MATRIZ PROB E IMPACTO.'!G11),E22<=MAX('[4]F-2. MATRIZ PROB E IMPACTO.'!D7:D11,'[4]F-2. MATRIZ PROB E IMPACTO.'!E9:E11,'[4]F-2. MATRIZ PROB E IMPACTO.'!F11,'[4]F-2. MATRIZ PROB E IMPACTO.'!G11,)),\"Baja Prioridad\",\"\"))))","v":"Alta Prioridad"},null,null,null,{"$f":"+E25","v":"Mitigar Riesgo"},{"$f":"+G25","v":0}]
[null,null,null,null,null,null,null,null,null,null,null,{"$f":"+E26","v":"Aceptar Riesgo"},{"$f":"+G26","v":"X"}]
[5,"RESPUESTA A LOS RIESGOS",null,null,null,null,null,null,null,null,null,{"$f":"+H25","v":"Evitar Riesgo"},{"$f":"+I25","v":0}]
[null,5.0999999999999996,"ESTRATEGIA",null,"Mitigar Riesgo",null,null,"Evitar Riesgo",null,null,null,{"$f":"+H26","v":"Transferir Riesgo"},{"$f":"+I26","v":0}]
[null,null,null,null,"Aceptar Riesgo",null,"X","Transferir Riesgo"]
[null,5.2,"DISPARADOR DE RIESGO",null,"OCURRE EL FENOMENO NATURAL AFECTANDO LAS OBRAS",null,null,null,null,null,null,null,{"$f":"IFERROR(INDEX(L22:M26,MATCH(IF(M22>0,M22,IF(M23>0,M23,IF(M24>0,M24,IF(M25>0,M25,IF(M26>0,M26,\"\"))))),M22:M26,0),1),\"\")","v":"Aceptar Riesgo"}]
[null,5.3,"ACCIONES PARA DAR RESPUESTA AL RIESGO",null,"* REALIZAR LA INSPECCION CON ANTICIPACION Y REALIZAR LA VERIFICACION DE LAS ZONAS VULNERABLES QUE PODRIAN CAUSAR LOS DESASTRES NATURALES Y TOMAR PREVENSION A LOS CAUSALES. * EL EJECUTOR DEBE CONSIDERAR EN SU OFERTA ECONOMICA LOS COSTOS PARA ASEGURAR LA OBRA CONTRA DESASTRES NATURALES.                                                                                                                                                        * EJECUTOR REPONE DAÑOS SIN QUE LA ENTIDAD REALICE PAGOS ADICIONALES      "]

{"sheet":"F-2. MATRIZ PROB E IMPACTO.","index":16,"n_rows":14,"n_cols":9,"rows_kept":14,"cut":false,"hidden":false,"merged":[[13,0,13,4],[0,0,0,7],[1,0,1,7],[2,0,2,7],[6,0,10,0],[11,0,12,2]]}
["Anexo N° 02",null,null,null,null,null,null,null,"Regresar"]
["Matriz de probabilidad e impacto según Guía PMBOK"]
[]
[]
[]
[]
[" 1. PROBABILIDAD DE OCURRENCIA ","Muy Alta ",0.9,{"$f":"+C7*D12","v":4.5000000000000005E-2},{"$f":"+C7*E12","v":9.0000000000000011E-2},{"$f":"+C7*F12","v":0.18000000000000002},{"$f":"+C7*G12","v":0.36000000000000004},{"$f":"+C7*H12","v":0.72000000000000008}]
[null,"Alta",0.7,{"$f":"+C8*D12","v":3.4999999999999996E-2},{"$f":"+C8*E12","v":6.9999999999999993E-2},{"$f":"+C8*F12","v":0.13999999999999999},{"$f":"+C8*G12","v":0.27999999999999997},{"$f":"+C8*H12","v":0.55999999999999994}]
[null,"Moderada ",0.5,{"$f":"+C9*D12","v":2.5000000000000001E-2},{"$f":"+C9*E12","v":0.05},{"$f":"+C9*F12","v":0.1},{"$f":"+C9*G12","v":0.2},{"$f":"+C9*H12","v":0.4}]
[null,"Baja ",0.3,{"$f":"+C10*D12","v":1.4999999999999999E-2},{"$f":"+C10*E12","v":0.03},{"$f":"+C10*F12","v":0.06},{"$f":"+C10*G12","v":0.12},{"$f":"+C10*H12","v":0.24}]
[null,"Muy Baja ",0.1,{"$f":"+C11*D12","v":5.000000000000001E-3},{"$f":"+C11*E12","v":1.0000000000000002E-2},{"$f":"+C11*F12","v":2.0000000000000004E-2},{"$f":"+C11*G12","v":4.0000000000000008E-2},{"$f":"+C11*H12","v":8.0000000000000016E-2}]
["2. IMPACTO EN LA \nEJECUCIÓN DE LA OBRA",null,null,0.05,0.1,0.2,0.4,0.8]
[null,null,null,"Muy Bajo","Bajo","Moderado","Alto","Muy Alto"]
["3. PRIORIDAD DEL RIESGO",null,null,null,null,"Baja","Moderada","Alta"]

{"sheet":"F-3. ASIGNACION RIESGOS ","index":17,"n_rows":23,"n_cols":14,"rows_kept":23,"cut":false,"hidden":false,"merged":[[22,8,22,10],[21,8,21,10],[18,8,18,10],[20,8,20,10],[14,8,14,10],[19,8,19,10],[15,8,15,10],[16,8,16,10],[17,8,17,10],[0,0,0,12],[1,0,1,12],[2,0,3,1],[2,4,2,5],[2,6,3,7],[2,9,2,12],[3,4,3,5],[3,9,3,12],[5,0,6,2],[5,4,5,12],[6,4,6,7],[6,8,7,10],[6,11,6,12],[8,8,8,10],[9,8,9,10],[12,8,12,10],[13,8,13,10],[10,8,10,10],[11,8,11,10]]}
["Anexo N° 03",null,null,null,null,null,null,null,null,null,null,null,null,"Regresar"]
["Formato para asignar los riesgos"]
["1. NÚMERO Y FECHA DEL DOCUMENTO",null,"Número",null,1,null,"2. DATOS GENERALES DEL PROYECTO",null,"Nombre del Proyecto","‘‘MEJORAMIENTO DE LAS VÍAS DE CIRCULACIÓN INTERNA, SEÑALIZACIÓN Y ORNATO EN LA SEDE CENTRAL DE LA UNIVERSIDAD NACIONAL DE EDUCACIÓN ENRIQUE GUZMÁN Y VALLE’’ – SALDO DE OBRA – 1ERA ETAPA"]
[null,null,"Fecha",null,"ABRIL DEL 2022",null,null,null,"Ubicación Geográfica","DISTRITO CHOSICA, PROVINCIA LURIGANCHO, DEPARTAMENTO LIMA"]
[]
["3.INFORMACIÓN DEL RIESGO",null,null,null,"4 PLAN DE RESPUESTA A LOS RIESGOS"]
[null,null,null,null,"4.1 ESTRATEGIA SELECCIONADA",null,null,null,"4.2 ACCIONES A REALIZAR EN EL MARCO DEL PLAN",null,null,"4.3 RIESGO ASIGNADO A"]
["3.1 CÓDIGO \nDE RIESGO","3.2 DESCRIPCIÓN DEL RIESGO","3.3 PRIORIDAD \nDEL RIESGO","ESTRATEGIA SELECIONADA","Mitigar Riesgo","Evitar Riesgo","Aceptar Riesgo","Transferir Riesgo",null,null,null,"Entidad","Contratista"," "]
["VIAS-UNE-001","ERRORES, OMISIONES O DEFICIENCIAS EN LOS DISEÑOS","Alta Prioridad","Aceptar Riesgo",{"$f":"IF(D9=$E$8,\"X\",\" \")","v":" "},{"$f":"IF(D9=$F$8,\"X\",\" \")","v":" "},{"$f":"IF(D9=$G$8,\"X\",\" \")","v":"X"},{"$f":"IF(D9=$H$8,\"X\",\" \")","v":" "}," * SUPERVISION INFORMA OCORRUNCIA Y ENTIDAD EVALUA  A FIN DE TRASLADAR LAS RESPONSABILIDADES U OBLIGACIONES, ASI COMO TAMBIEN, DE PRESENTARSE VARIACIONES EN LOS COSTOS, IMPLEMENTAR MEDIDAS COMPENSATORIAS EN EL MARCO DE LA LEY DE CONTRATACIONES DEL ESTADO.                                                                         * EL AREA DE ESTUDIOS Y PROYECTOS, A TRAVES DE COORDINADOR DEL PROYECTO Y ESPECIALISTA RECALCULA, REDISEÑA Y/O ABSUELVE CONSULTA DENTRO DE  PLAZO DE LEY.",null,null,{"$f":"IF(H9=\" \",\"X\",\" \")","v":"X"},{"$f":"IF(H9=\"X\",\"X\",\" \")","v":" "}]
["VIAS-UNE-002","EQUIPOS Y/O MAQUINARIA NO CUMPLE CON ESPECIFICACIONES TECNICAS O NO ES APROPIADA PARA EJECUCION DE PARTIDAS SEGÚN CALIFICACION DE LA SUPERVISION","Prioridad Moderada","Transferir Riesgo",{"$f":"IF(D10=$E$8,\"X\",\" \")","v":" "}," "," ","X","*SUPERVISION OPORTUNAMENTE EVALUA Y APRUEBA LA MAQUINARIA EN SU PUNTO DE PARTIDA, AUTORIZANDO SU TRASLADO E INGRESO A LA OBRA.                                                                                                               * CONTRATISTA CERTIFICA OPERATIVIDAD DE MAQUINARIA Y EQUIPOS  EN SU PUNTO DE PARTIDA.                                                                                * EJECUTOR ES RESPONSABLE DE CONTAR MINIMAMENTE CON UN (01) EQUIPO O MAQUINARIA ADICIONAL  DE CARACTERISTICAS SIMILARES CARACTERISTICAS O REPONER EN UN PLAZO DETERMINADO POR LA SUPERVISION.                                                                                                       * SUPERVISION ESTA AUTORIZADO PARA RECHAZAR MAQUINARIA Y EQUIPOS  QUE NO CUMPLEN CON ESPECIFICACIONES TECNICAS O CONSIDERA INAPROPIADA PARA EJECUTAR LA OBRA.                               ",null,null," ","X"]
["VIAS-UNE-003","DEFICIENCIAS ESTRUCTURALES EN LA CONSTRUCCION DE LAS VIAS PEATONALES Y CICLOVIAS ","Alta Prioridad","Transferir Riesgo"," "," "," ","X","* LA SUPERVISION EXIGE PERMANENCIA DE RESIDENTE DE OBRA Y ESPECIALISTA EN SUELOS Y CONTROL DE CALIDAD DEL EJECUTOR.                                                                                                                               * LA SUPERVISION CALIFICA Y AUTORIZA EMPLEO DE MANO DE OBRA.                                                                                                                                             * LA SUPERVISION SIEMPRE AUTORIZA EJECUCION DE PARTIDAS SUCESORAS MEDIANTE ANOTACION EN CUADERNO DE OBRA.                                                         * EJECUTOR A SU COSTO EFECTUA LAS CORRECIONES A SATISFACCION DE LA SUPERVISION, PROYECTISTA U OTRO PROFESIONAL DE LA ESPECIALIDAD POR PARTE DE LA ENTIDAD.",null,null," ","X"]
["VIAS-UNE-004","DAÑOS A INFRAESTRUCTURA EXISTENTE DE LA ENTIDAD O PROPIEDAD DE TERCEROS.","Prioridad Moderada","Transferir Riesgo"," "," "," ","X","*EJECUTOR DEBERA DE CUMPLIR CON MEDIDAS DE PROTECCION Y SEGURIDAD PARA TRASLADO DE PERSONAL, MATERIALES, MAQUINARIA Y/O EQUIPOS, ASI MISMO UNA BUENA SEÑALIZACION VIAL EN CASO SE INTERRUMPA LOS ACCESOS VEHICULARES.                                                                                                           *EL EJECUTOR A SU COSTO ESTA OBLIGADO A REPARAR, REPONER, RECONSTRUIR, DEJANDO EN SIMILAR O MEJOR CONDICION LO DAÑADO.                                                                                                                         * EL EJECUTOR ES RESPONSABLE DE ADQUIRIR Y MANTENER VIGENTE LOS SEGUROS CONTRA  RIESGO DE INGENIERIA, DAÑOS A TERCEROS, ETC.                                                                                                                                      * EJECUTOR ESTA OBLIGADO A TENER UN INGENIERO ESPECIALISTA EN SEGURIDAD Y SALUD OCUPACIONAL EN TODAS LAS ACTIVIDADES QUE CONSTITUYAN RIESGO A PROPIDAD DE TERCEROS Y DE LA ENTIDAD                                                                                                                * SUPERVISION EVALUA Y AUTORIZA  PARTICIPACION DE OPERADORES CALIFICADAS EN LA OBRA.                            ",null,null," ","X"]
["VIAS-UNE-005","DEFICIENCIA EN TRABAJOS DE PLAN DE CONTINGENCIA Y ADECUACION A LA NORMA GE.030 CALIDAD DE LA CONSTRUCCION, EN CONCORDANCIA CON LA PROGRAMACION DE OBRA","Alta Prioridad","Transferir Riesgo"," "," "," ","X","*SUPERVISION SOLICITA OPORTUNAMENTE CERTIFICADO DE CALIDAD  DE MATERIALES.                                                                               *SUPERVISION EVALUA Y AUTORIZA OPORTUNAMENTE USO DE EQUIPOS PARA LOS TRABAJOS.                                                                     *RESIDENTE DE OBRA DIRIGE DE MANERA PERMANENTE PROCESO CONSTRUCTIVO                                                                                                         * SUPERVISION NO LIBERA TRABAJOS DEFICIENTES, HASTA QUE EL EJECUTOR A SU COSTO EFECTUA LAS CORRECCIONES, A SATISFACCION DE LA SUPERVISION                                                                                              * LA SUPERVISION EXIGE PERMANENCIA DE RESIDENTE DE OBRA Y ESPECIALISTAS DEL EJECUTOR.                                                                                                                               * LA SUPERVISION CALIFICA Y AUTORIZA EMPLEO DE MANO DE OBRA.                                                                                                                                             * LA SUPERVISION SIEMPRE AUTORIZA EJECUCION DE PARTIDAS SUCESORAS MEDIANTE ANOTACION EN CUADERNO DE OBRA.            ",null,null," ","X"]
["VIAS-UNE-006","RIESGO DE EXCESO DE RUIDO, REMANENTES DE ACERO CORRUGADO FY=4200 KG/CM2 GRADO 60 Y CONTAMINACION DE POLVO AL REALIZAR TRABAJOS DE CAMPO","Prioridad Moderada","Transferir Riesgo"," "," "," ","X","*SUPERVISION CONTROLA LA EJECUCION DEL PLAN DE MANEJO AMBIENTAL  Y DE SER NECESARIO ADECUA EL PLAN A LAS NECESIDADES REALES.                                                                  *SUPERVISION CONTROLA EL USO DE LA MAQUINARIAS Y HORARIOS DE TRABAJO.                                                                                         * EJECUTOR A SU COSTO IMPLEMENTA MEDIDAS PARA CONTROLAR LOS IMPACTOS NEGATIVOS PROPIOS DE SUS ACTIVIDADES CONSTRUCTIVAS Y REPARA DAÑOS CAUSADOS AL MEDIO AMBIENTE.",null,null," ","X"]
["VIAS-UNE-007","RIESGO DE ATRASOS POR DEMORA EN ATENCION DE CONSULTAS SOBRE OCURRENCIAS DE OBRA","Alta Prioridad","Aceptar Riesgo"," "," ","X"," "," * AREA DE OBRAS EQUIPAMIENTO Y MANTENIMIENTO EVALUA SI CONSULTA DEBE SER ATENDIDA POR LA SUPERVISION Y DE SER EL CASO  EXIGE A LA SUPERVISION ATENDER LA CONSULTA.                                                                                                           * CONSULTAS SUSTANCIALES SOBRE OCURRENCIAS DE OBRA SON DIRECTAMENTE NOTIFICADAS AL PROYECTISTA O COORDINADOR DE PROYECTO POR EL AREA DE OBRAS EQUIPAMIENTO Y MANTENIMIENTO.                                                                                                                             *ANTE FALTA DE ATENCION A CONSULTA LA AREA DE ESTUDIOS Y PROYECTOS TOMA ACCIONES PARA  ATENCION PRIORITARIA A TRAVES DE ESPECIALISTA TENIENDO EN CUENTA LOS PLAZOS DE LEY.                                   ",null,null,"X"," "]
["VIAS-UNE-008","RIESGO DE ACCIDENTES GRAVES Y MUY GRAVES PRODUCTO DE LA EJECUCION DE LA OBRA","Alta Prioridad","Transferir Riesgo"," "," "," ","X","*ES OBLIGACION DEL EJECUTOR QUE TODO SU PERSONAL CUENTE CON SEGUROS CONTRA TODO RIESGO (SCTR)                                                                    * EJECUTOR REALIZA CHARLAS DIARIAS DE INDUCCION                                                                                                           *SUPERVISION EXIGE PRESENCIA PERMANENTE DE PREVENCIONISTA DE RIESGO                                                                                                            *EJECUTOR IMPLEMENTA PLAN DE CONTINGENCIA EN CASO DE ACCIDENTES EN OBRA                                                                                                              * EJECUTOR DISEÑA E IMPLEMENTA UN PLAN DE SEGURIDAD Y SALUD EN EL TRABAJO.                                                                                                              * EL EJECUTOR ES RESPONSABLE DE CUBRIR LOS COSTOS POR ACCIDENTES  PRODUCTO DE LA EJECUCION DE LA OBRA .                                                                                            * EJECUTOR DEBE CONTRATAR Y PRESENTAR SEGUROS OBLIGATORIOS PARA EL PERSONAL ENCARGADO DE LA CONSTRUCCION Y MANTENERLO VIGENTE DURANTE EL PERIODO DE EJECUCION DE LA OBRA                                                                                  * SUPERVISION SOLICITA, INSPECCIONA Y EXIGE CUMPLIMIENTO DE PLAN DE SEGURIDAD Y SALUD EN EL TRABAJO.                                                                                    * EJECUTOR DISEÑA E IMPLEMENTA UN PLAN DE EMERGENCIA Y PRIMEROS AUXILIOS (ANTE POSIBLE ACCIDENTE DE OBREROS POR TRABAJOS REALIZADOS EN LA EJECUCION DE OBRA).                                                                                                              * EJECUTOR CUENTA CON EQUIPOS DE PRIMEROS AUXILIOS Y  MOVILIDAD EXCLUSIVA PARA TRASLADO DE PERSONAL OBRERO, TECNICO, PROFESIONAL U OTRAS PERSONAS ACCIDENTADAS PRODUCTO DE LA EJECUCION DE LAS OBRAS, A CENTRO DE SALUD, CLINICA U HOSPITAL.      ",null,null," ","X"]
["VIAS-UNE-009","DEFICIENTE GESTION OPERATIVA Y ADMINISTRATIVA DE LA OBRA","Alta Prioridad","Transferir Riesgo",{"$f":"IF(D17=$E$8,\"X\",\" \")","v":" "},{"$f":"IF(D17=$F$8,\"X\",\" \")","v":" "},{"$f":"IF(D17=$G$8,\"X\",\" \")","v":" "},{"$f":"IF(D17=$H$8,\"X\",\" \")","v":"X"},"* EXIGIR AL EJECUTOR LA PRESENCIA DE PERSONAL CLAVE.                                                                                                  * EXIGIR USO DE RECURSOS CONSIDERADOS EN EL COSTO DIRECTO E INDIRECTO DE LA OBRA                                                                                                                                  * SUPERVISION EVALUA Y SOLICITA EL CAMBIO DE PERSONAL PROFESIONAL Y TECNICO                                                                                                                                                                                                                                                                             * SUPERVISION ESTABLECE MECANISMOS DE ASEGURAMIENTO DE CUMPLIMIENTO DE LAS NORMAS TECNICAS DE CALIDAD, SEGURIDAD SALUD Y BUENAS PRACTICAS CONSTRUCTIVAS, SEGUN NORMATIVA VIGENTE.                                                                                                                                                  * VERIFICAR A TRAVES DEL SUPERVISOR, LA CORRECTA GESTION OPERATIVA Y ADMINISTRATIVA DE LA OBRA MEDIANTE VISITAS, REUNIONES, ENVIO DE MATERIAL VISUAL U OTROS MECANISMOS QUE PERMITAN CONOCER EL ESTADO SITUACIONAL DE LA OBRA (AVANCE DE OBRA)",null,null,{"$f":"IF(H17=\" \",\"X\",\" \")","v":" "},{"$f":"IF(H17=\"X\",\"X\",\" \")","v":"X"}]
["VIAS-UNE-010","RIESGO DE CONTAMINACION DE SUELO, AIRE Y AGUA","Alta Prioridad","Transferir Riesgo"," "," "," ","X","*SUPERVISION CONTROLA LA EJECUCION DEL PLAN DE MANEJO AMBIENTAL  Y DE SER NECESARIO ADECUA EL PLAN A LAS NECESIDADES REALES.                                                                  *SUPERVISION CONTROLA EL USO DE LA MAQUINARIAS Y HORARIOS DE TRABAJO.                                                                                         * EJECUTOR A SU COSTO IMPLEMENTA MEDIDAS PARA CONTROLAR LOS IMPACTOS NEGATIVOS PROPIOS DE SUS ACTIVIDADES CONSTRUCTIVAS Y REPARA DAÑOS CAUSADOS AL MEDIO AMBIENTE.",null,null," ","X"]
["VIAS-UNE-011","CONCRETO NO CUMPLE CON RESISTENCIA A LA COMPRESION ESPECIFICADA","Alta Prioridad","Transferir Riesgo"," "," "," ","X","*  SUPERVISION   APRUEBA DISEÑO DE MEZCLA DEL EJECUTOR                                                                                                                                                                                                                                                                                                                                                                                                                                                                                                                                        * SUPERVISION DA PASE A VACIADOS DE CONCRETO VIA CUADERNO DE OBRA.                                                                                                                                                                                                                                                                                            * SUPERVISION EXIGE PRESENCIA  DE RESISENTE DE OBRA.                                                                                                                       * CONTROL DE MANO DE OBRA CALIFICADA                                                                                            * SUPERVISION CONTROLA PERIODO  Y ADECUADO ALMACENAMIENTO DE CEMENTO Y AGREGADOS.                                                                                     *EL EJECUTOR A SU COSTO REPARA O DEMUELE ELEMENTOS ESTRUCTURALES OBSERVADOS POR LA SUPERVISION.          ",null,null," ","X"]
["VIAS-UNE-012","DELINCUENCIA Y/O VANDALISMO","Baja Prioridad","Transferir Riesgo"," "," "," ","X","* EJECUTOR CONTRATAR SERVICIOS DE SEGURIDAD Y VIGILANCIA INTERNA Y EXTERNA DE LA OBRA.                                                                                   * EJECUTOR COORDINA CONSTANTEMENTE CON LA POLICIA NACIONAL PARA INCREMENTAR VIGILANCIA.                                                                                                                                                                                                                                                                                                           ",null,null," ","X"]
["VIAS-UNE-013","USO DE DEPOSITOS DE MATERIAL EXCEDENTES (DME) NO AUTORIZADOS O PROPIEDAD DE TERCEROS ","Prioridad Moderada","Mitigar Riesgo","X"," "," "," ","*USO DE DME ALTERNATIVOS PROYECTADOS                                                                                           *SUPERVISION PROPONE DME ALTERNATIVOS CERCANOS AL PROYECTO",null,null,"X"," "]
["VIAS-UNE-014","CAMBIOS EN LA NORMATIVA QUE RESULTE DE APLICACIÓN EN LA EJECUCION DE LA OBRA","Baja Prioridad","Aceptar Riesgo",{"$f":"IF(D22=$E$8,\"X\",\" \")","v":" "}," ","X"," ","* IMPLEMENTAR LAS MODIFICACIONES DE LA NORMATIVA QUE SEA APLICABLE A LA EJECUCION DE LA OBRA.                                               * ANALIZAR LOS CAMBIOS PRESENTADOS EN LA NORMATIVA APLICABLE A FIN DE TRASLADAR LAS RESPONSABILIDADES U OBLIGACIONES AL CONTRATISTA, ASI COMO TAMBIEN, DE PRESENTARSE VARIACIONES EN LOS COSTOS, IMPLEMENTAR MEDIDAS COMPENSATORIAS EN EL MARCO DE LA LEY DE CONTRTACIONES DEL ESTADO.                                                                                            ",null,null,"X"," "]
["VIAS-UNE-015","DEBIDO A LAS OCURRENCIAS DE DESASTRES NATURALES PODRIA OCURRIR DAÑOS IRREPARABLES EN LA OBRA A EJECUTAR, LO QUE CONLLEVARIA A AFECTAR EL COSTO DEL PROYECTO Y PERDIDAS DE MATERIALES DE CONSTRUCCION Y BIENES","Prioridad Moderada","Transferir Riesgo",{"$f":"IF(D23=$E$8,\"X\",\" \")","v":" "},"X",{"$f":"IF(D23=$G$8,\"X\",\" \")","v":" "},null,"* REALIZAR LA INSPECCION CON ANTICIPACION Y REALIZAR LA VERIFICACION DE LAS ZONAS VULNERABLES QUE PODRIAN CAUSAR LOS DESASTRES NATURALES Y TOMAR PREVENSION A LOS CAUSALES. * EL EJECUTOR DEBE CONSIDERAR EN SU OFERTA ECONOMICA LOS COSTOS PARA ASEGURAR LA OBRA CONTRA DESASTRES NATURALES.                                                                                                                                                        * EJECUTOR REPONE DAÑOS SIN QUE LA ENTIDAD REALICE PAGOS ADICIONALES      ",null,null,{"$f":"IF(H23=\" \",\"X\",\" \")","v":" "},"X"]

{"sheet":"Hoja1","index":18,"n_rows":0,"n_cols":0,"rows_kept":0,"cut":false,"hidden":true,"merged":[]}

{"sheet":"Hoja3","index":19,"n_rows":0,"n_cols":0,"rows_kept":0,"cut":false,"hidden":true,"merged":[]}